{"text_format":"1","workbook":"xlsx","n_sheets":24,"sheets":["APPLICATION FORM   ","SHORT INSTRUCTIONS","BASIC INFORMATION","PROJECT SUMMARY","PROJECT PARTNERSHIP","PROJECT DESCRIPTION","LOGICAL FRAME (B1)","LOGICAL FRAME (B2)","LOGICAL FRAME (B3)","WORK PLAN (B1)","WORK PLAN (B2)","WORK PLAN (B3)","EQUIPMENT","CONSTRUCTION ","INVESTMENT DOCUMENTATION","FINANCIAL PLAN","FINANCIAL GAP","PROJECT ROADMAP","RISKS","IMPACT","INFORMATION AND PUBLICITY PLAN","CHECKLIST","STATEMENT","SIGNATURE"],"not_rendered":{"charts":0,"images":365,"macros":1,"external_links":1,"defined_names":38,"comments":2,"pivot_tables":0},"unopened":[],"bounds":{"document_bytes":16777216,"sheet_cells":100000,"rows_first":2000,"rows_last":500,"rows_between":2000,"halvings":0,"cell_chars":16384,"cell_head_chars":4096},"cells_cut":0,"cells_raw":0,"read":"whole","date_system":"1900"}

{"sheet":"APPLICATION FORM   ","index":0,"n_rows":13,"n_cols":5,"rows_kept":13,"cut":false,"hidden":false,"merged":[[6,1,6,5],[7,1,7,5],[8,1,8,5],[9,1,9,5],[0,1,0,5],[1,1,1,5],[2,1,2,5],[3,1,3,5],[4,1,4,5],[5,1,5,5]]}
[]
[null,"APPLICATION FORM"]
[]
[null,"for the call for proposals to co-finance projects under"]
[]
[null,"the Norwegian Financial Mechanism Programme 2009-2014 and the EEA Financial Mechanism Programme 2009-2014"]
[]
[]
[]
[null,"Set B – EEA Financial Mechanism Programme 2009-2014"]
[]
[null,"Filled in by MEDT:",null,"SPIS No."]
[null,null,null,"Programme No.","SI02"]

{"sheet":"SHORT INSTRUCTIONS","index":1,"n_rows":34,"n_cols":1,"rows_kept":34,"cut":false,"hidden":false,"merged":[]}
["1. SHORT INSTRUCTIONS FOR FILLING IN THE APPLICATION FORM"]
[]
["Before filling in the application form read the Annex 2 of the Applicants Manual – Set B, that supplements application form with additional instructions."]
["The application form must be filled in completely (all fields marked with green colour, and drop-down lists marked with yellow colour), unless different instructions are given (fields marked with white colour) and those parts which are to be completed automatically (fields marked with grey colour)."]
["Legend: "]
["Mandatory field "]
["Conditionally mandatory field, mandatory only if required by instructions"]
["Drop-down list"]
["Automatic field"]
[]
["The application form in the Slovenian language and the application form in the English should be filled in electronically Excel file; application forms completed in manuscript will be rejected."]
["The electronic version and the hard copy should be identical. This applies to the application form in the Slovenian as to the application form in English language. "]
["The hard copy is appropriately signed and stamped."]
["All financial figures must be in Euros. "]
["Before submitting the application, verify that all information is correct, including the figures, and even those that are calculated automatically."]
["All of the data from open applications are public, except those specifically marked by the applicant as a business secret. Data supplied by the applicants and considered a business secret should be marked as such in the application. An individual information or part of the application can be marked as a business secret, it cannot, however, refer to the full application and data which are necessary for the assessment of the application according to the criteria of the call for proposals. "]
["Send a copy of the fully completed application form in the Slovenian language AND a copy of the fully completed application form in the English language in hard copy AND the electronic version (on CD, DVD or USB flash drive), along with the rest of the documentation to the following address:   "]
[]
[]
[]
["Ministry of Economic Development and Technology"]
["Kotnikova ulica 5"]
["1000 Ljubljana"]
[]
[]
["Technical information on the electronic fulfilment of applications in Excel\n-      The application form is in the standard programming tool Microsoft Excel. Before filling in the application, you must first choose “Enable content”."]
["-        In Chapter 2 – Basic Information of the application form you should first select the area of the call. Further structure of the application form is dependent and is adjusted to the selected area. "]
["-     By clicking on the drop-down list, marked in yellow, an arrow appears on the right side. If you click again on the same field or on the arrow, the content of the drop-down list appears. You should always choose one of the options listed in the drop-down list. "]
["-     If you wish to make a new line, hold the Alt key, press the Enter key and continue writing."]
["-       Format (height, width) of application form elements (rows, columns) cannot be changed because it is protected. "]
["-       You can move between the tabs by using the controller which is located in the bottom left corner of Excel."]
["-      The application form in hard copy and electronic version should be identical. To avoid data loss in the hard copy, keep the size of the fields to be filled in, although the application form enables you to fill in under this point. The size of the field has been adjusted to the admissible number of characters of each field or cell."]
["-       Do not forget to promptly save the data entered."]
["-       In the event of problems or error messages (such as Visual Basic), please contact the Programme Operator. "]

{"sheet":"BASIC INFORMATION","index":2,"n_rows":38,"n_cols":13,"rows_kept":38,"cut":false,"hidden":false,"merged":[[2,0,2,1],[15,0,16,0],[15,1,16,1]]}
["2. BASIC INFORMATION"]
[null,null,null,null,null,null,null,null,null,null,null,"Biodiversity and ecosystem services",1]
["Write the title of the project and its acronym. Select the area of the call. Write the overall value of the project. Fill in the information on the duration of the project. Note regarding the latter that the project must last at least 12 months, but not longer than by 30 April 2016. The financial data will be downloaded automatically when the financing plan is completed. ",null,null,null,null,null,null,null,null,null,null,"Natural Heritage",2]
[null,null,null,null,null,null,null,null,null,null,null,"Cultural Heritage",3]
[]
[]
["Project title",null,null,"Max 200 characters."]
["Project acronym",null,null,"Max 50 characters."]
["Programme","EEA Financial Mechanism 2009–2014"]
["Area of the call in Set B ","Cultural Heritage",null,"Choose one of the options"]
[]
[]
["Overall value of the project",null,null,"Indicate eligible and as well as any ineligible project costs that will be incurred during the project implementation period."]
["Total eligible costs of the project",{"$f":"'FINANCIAL PLAN'!R30","v":0}]
["The requested amount of the grant for co-financing of the project",{"$f":"'FINANCIAL PLAN'!R27","v":0}]
["The share of the grant for co-financing of project",{"$f":"'FINANCIAL PLAN'!S27","v":{"$error":"#DIV/0!"}}]
[]
["The amount of own contribution",{"$f":"'FINANCIAL PLAN'!R26","v":0}]
["The share of own contribution",{"$f":"'FINANCIAL PLAN'!S26","v":{"$error":"#DIV/0!"}}]
["Project duration",{"$f":"DATEDIF(B21,B22,\"y\") & \" year(s), \" & DATEDIF(B21,B22,\"ym\") & \" month(s), \" & DATEDIF(B21,B22,\"md\") & \" day(s)\"","v":"2 year(s), 3 month(s), 29 day(s)"}]
["Start","1.1.2014",null,"Select date"]
["Closure","30.4.2016",null,"Select date"]
[null,null,null,{"$f":"IF((DATEDIF(B21,B22,\"m\") < 12),\"Projekt mora trajati vsaj 12 mesecev!\",\"\")","v":""}]
[]
[]
[]
["SKRITO"]
[]
["Indeks izbranega področja",{"$f":"VLOOKUP(B10, L2:M4,2,0)","v":3}]
[]
[]
[]
[]
[]
[]
[]
["KOMENTARJI"]
["B32 je vrednost podpročja, B28 pa področja"]

{"sheet":"PROJECT SUMMARY","index":3,"n_rows":5,"n_cols":6,"rows_kept":5,"cut":false,"hidden":false,"merged":[[2,0,2,3],[4,0,4,3]]}
["3. PROJECT SUMMARY"]
[]
["In the summary of the project specify its rationale, the general and specific objectives, insofar as they exist. Specify the target group, the expected outcomes, key outputs and main activities of the project. Describe how the project will contribute to bilateral relations and what will the partnership achieve."]
[]
[null,null,null,null,null,"Max 1000 characters"]

{"sheet":"PROJECT PARTNERSHIP","index":4,"n_rows":382,"n_cols":17,"rows_kept":382,"cut":false,"hidden":false,"merged":[[87,1,87,4],[88,1,88,4],[79,0,79,4],[110,0,110,4],[102,1,102,4],[103,1,103,4],[104,1,104,4],[105,1,105,4],[106,1,106,4],[109,0,109,4],[101,1,101,4],[90,1,90,4],[91,1,91,4],[92,1,92,4],[93,1,93,4],[94,1,94,4],[95,1,95,4],[96,1,96,4],[97,1,97,4],[98,1,98,4],[99,1,99,4],[100,1,100,4],[4,0,4,4],[23,1,23,4],[24,1,24,4],[25,1,25,4],[26,1,26,4],[27,1,27,4],[16,1,16,4],[5,1,5,4],[6,1,6,4],[7,1,7,4],[8,1,8,4],[9,1,9,4],[10,1,10,4],[11,1,11,4],[12,1,12,4],[13,1,13,4],[14,1,14,4],[15,1,15,4],[54,0,54,4],[55,0,55,4],[57,0,57,4],[44,0,44,4],[117,1,117,4],[118,1,118,4],[119,1,119,4],[120,1,120,4],[121,1,121,4],[112,1,112,4],[113,1,113,4],[114,1,114,4],[115,1,115,4],[116,1,116,4],[69,0,69,4],[70,0,70,4],[89,1,89,4],[58,0,58,4],[60,0,60,4],[74,0,74,4],[75,0,75,4],[84,1,84,4],[85,1,85,4],[86,1,86,4],[122,1,122,4],[123,1,123,4],[124,1,124,4],[125,1,125,4],[126,1,126,4],[28,1,28,4],[17,1,17,4],[18,1,18,4],[19,1,19,4],[20,1,20,4],[21,1,21,4],[22,1,22,4],[35,1,35,4],[67,0,67,4],[29,1,29,4],[30,1,30,4],[31,1,31,4],[32,1,32,4],[33,1,33,4],[34,1,34,4],[66,0,66,4],[45,0,45,4],[51,0,51,4],[52,0,52,4],[132,1,132,4],[133,1,133,4],[134,1,134,4],[137,0,137,4],[138,0,138,4],[127,1,127,4],[128,1,128,4],[129,1,129,4],[130,1,130,4],[131,1,131,4],[145,1,145,4],[146,1,146,4],[147,1,147,4],[148,1,148,4],[149,1,149,4],[140,1,140,4],[141,1,141,4],[142,1,142,4],[143,1,143,4],[144,1,144,4],[155,1,155,4],[156,1,156,4],[157,1,157,4],[158,1,158,4],[159,1,159,4],[150,1,150,4],[151,1,151,4],[152,1,152,4],[153,1,153,4],[154,1,154,4],[168,1,168,4],[169,1,169,4],[170,1,170,4],[171,1,171,4],[172,1,172,4],[160,1,160,4],[161,1,161,4],[162,1,162,4],[165,0,165,4],[166,0,166,4],[178,1,178,4],[179,1,179,4],[180,1,180,4],[181,1,181,4],[182,1,182,4],[173,1,173,4],[174,1,174,4],[175,1,175,4],[176,1,176,4],[177,1,177,4],[188,1,188,4],[189,1,189,4],[190,1,190,4],[193,0,193,4],[194,0,194,4],[183,1,183,4],[184,1,184,4],[185,1,185,4],[186,1,186,4],[187,1,187,4],[201,1,201,4],[202,1,202,4],[203,1,203,4],[204,1,204,4],[205,1,205,4],[196,1,196,4],[197,1,197,4],[198,1,198,4],[199,1,199,4],[200,1,200,4],[211,1,211,4],[212,1,212,4],[213,1,213,4],[214,1,214,4],[215,1,215,4],[206,1,206,4],[207,1,207,4],[208,1,208,4],[209,1,209,4],[210,1,210,4],[224,1,224,4],[225,1,225,4],[226,1,226,4],[227,1,227,4],[228,1,228,4],[216,1,216,4],[217,1,217,4],[218,1,218,4],[221,0,221,4],[222,0,222,4],[234,1,234,4],[235,1,235,4],[236,1,236,4],[237,1,237,4],[238,1,238,4],[229,1,229,4],[230,1,230,4],[231,1,231,4],[232,1,232,4],[233,1,233,4],[244,1,244,4],[245,1,245,4],[246,1,246,4],[249,0,249,4],[250,0,250,4],[239,1,239,4],[240,1,240,4],[241,1,241,4],[242,1,242,4],[243,1,243,4],[257,1,257,4],[258,1,258,4],[259,1,259,4],[260,1,260,4],[261,1,261,4],[252,1,252,4],[253,1,253,4],[254,1,254,4],[255,1,255,4],[256,1,256,4],[267,1,267,4],[268,1,268,4],[269,1,269,4],[270,1,270,4],[271,1,271,4],[262,1,262,4],[263,1,263,4],[264,1,264,4],[265,1,265,4],[266,1,266,4],[280,1,280,4],[281,1,281,4],[282,1,282,4],[283,1,283,4],[284,1,284,4],[272,1,272,4],[273,1,273,4],[274,1,274,4],[277,0,277,4],[278,0,278,4],[290,1,290,4],[291,1,291,4],[292,1,292,4],[293,1,293,4],[294,1,294,4],[285,1,285,4],[286,1,286,4],[287,1,287,4],[288,1,288,4],[289,1,289,4],[300,1,300,4],[301,1,301,4],[302,1,302,4],[305,0,305,4],[306,0,306,4],[295,1,295,4],[296,1,296,4],[297,1,297,4],[298,1,298,4],[299,1,299,4],[313,1,313,4],[314,1,314,4],[315,1,315,4],[316,1,316,4],[317,1,317,4],[308,1,308,4],[309,1,309,4],[310,1,310,4],[311,1,311,4],[312,1,312,4],[323,1,323,4],[324,1,324,4],[325,1,325,4],[326,1,326,4],[327,1,327,4],[318,1,318,4],[319,1,319,4],[320,1,320,4],[321,1,321,4],[322,1,322,4],[336,1,336,4],[337,1,337,4],[338,1,338,4],[339,1,339,4],[340,1,340,4],[328,1,328,4],[329,1,329,4],[330,1,330,4],[333,0,333,4],[334,0,334,4],[419,3,419,4],[420,3,420,4],[367,0,367,4],[368,0,368,4],[372,0,372,4],[373,0,373,4],[370,0,370,4],[413,3,413,4],[414,3,414,4],[415,3,415,4],[416,3,416,4],[417,3,417,4],[404,3,404,4],[405,3,405,4],[406,3,406,4],[407,3,407,4],[408,3,408,4],[409,3,409,4],[410,3,410,4],[381,3,381,4],[382,3,382,4],[383,3,383,4],[384,3,384,4],[377,0,377,4],[418,3,418,4],[356,1,356,4],[357,1,357,4],[358,1,358,4],[361,0,361,4],[362,0,362,4],[380,3,380,4],[411,3,411,4],[412,3,412,4],[401,3,401,4],[402,3,402,4],[398,3,398,4],[399,3,399,4],[400,3,400,4],[403,3,403,4],[385,3,385,4],[386,3,386,4],[387,3,387,4],[388,3,388,4],[389,3,389,4],[390,3,390,4],[391,3,391,4],[392,3,392,4],[393,3,393,4],[73,0,73,1],[394,3,394,4],[395,3,395,4],[396,3,396,4],[397,3,397,4],[41,1,41,4],[48,0,48,4],[47,0,47,4],[81,6,83,6],[351,1,351,4],[352,1,352,4],[353,1,353,4],[354,1,354,4],[355,1,355,4],[346,1,346,4],[347,1,347,4],[348,1,348,4],[349,1,349,4],[350,1,350,4],[341,1,341,4],[342,1,342,4],[343,1,343,4],[344,1,344,4],[345,1,345,4]]}
["4. PROJECT PARTNERSHIP",null,null,null,null,null,null,null,null,null,null,"Osnovne informacije'!B28",null,null,null,null,"zaporedje"]
[null,null,null,null,null,null,null,null,null,null,null,null,null,null,null,null,0]
[null,null,null,null,null,null,null,null,null,null,null,null,null,null,null,null,1]
["Applicant",null,null,null,null,null,null,null,null,null,null,null,null,null,null,null,2]
["Please provide the official name of the institution. It is also desirable to specify the organizational unit. Select the status from the drop-down list. Fill in official address, tax and registration number. If you wish, you can write a phone number and website of the applicant. Fill in the required information about the person in charge and about the contact person, who is also the Project Manager, while the contact address should be specified only insofar as it is different from the official. Please provide information on the bank, with which the applicant has opened an account, the seat of the bank should be located in the Republic of Slovenia.",null,null,null,null,null,null,null,null,null,null,null,null,null,null,null,3]
["Name of the institution",null,null,null,null,null,null,null,null,null,null,"Statusi","legal entity under public law",1,null,null,4]
["Status ","legal entity under public law",null,null,null,null,null,null,null,null,"status pogoj kulturna",{"$f":"IF('BASIC INFORMATION'!B29 = 3,\"M6:M8\",\"M6:M9\")","v":"M6:M8"},"non-profit legal entity under private law which is a non-governmental organisation",2,null,null,5]
["Official address",null,null,null,null,null,null,null,null,null,null,null,"non-profit legal entity under private law which is not a non-governmental organisation",3,null,null,6]
["Address",null,null,null,null,null,null,null,null,null,null,null,"profit legal entity under private law",null,null,null,7]
["Postal code  ",null,null,null,null,null,null,null,null,null,null,null,null,null,null,null,8]
["City/Town",null,null,null,null,null,null,null,null,null,null,null,null,null,null,null,9]
["State",null,null,null,null,null,null,null,null,null,null,"Izbrani status",{"$f":"VLOOKUP(B7, M6:N10,2,0)","v":1},null,null,null,10]
["Tax number ",null,null,null,null,null,null,null,null,null,null,"Izbrano področje",{"$f":"'BASIC INFORMATION'!B29","v":3},null,null,null,11]
["Registration number",null,null,null,null,null,null,null,null,null,null,null,null,null,null,null,12]
["Phone",null,null,null,null,null,null,null,null,null,null,null,null,null,null,null,13]
["Website",null,null,null,null,null,null,null,null,null,null,null,null,null,null,null,14]
["Person in charge of the institution",null,null,null,null,null,null,null,null,null,null,null,null,null,null,null,15]
["Name and surname",null,null,null,null,null,null,null,null,null,null,null,null,null,null,null,16]
["E-mail",null,null,null,null,null,null,null,null,null,null,null,null,null,null,null,17]
["Contact person",null,null,null,null,null,null,null,null,null,null,null,null,null,null,null,18]
["Name and surname",null,null,null,null,null,null,null,null,null,null,null,null,null,null,null,19]
["Phone",null,null,null,null,null,null,null,null,null,null,null,null,null,null,null,20]
["Email",null,null,null,null,null,null,null,null,null,null,null,null,null,null,null,21]
["Address",null,null,null,null,null,null,null,null,null,null,null,null,null,null,null,22]
["Postal code  ",null,null,null,null,null,null,null,null,null,null,null,null,null,null,null,23]
["City/Town",null,null,null,null,null,null,null,null,null,null,null,null,null,null,null,24]
["State",null,null,null,null,null,null,null,null,null,null,null,null,null,null,null,25]
["Bank details of the applicant",null,null,null,null,null,null,null,null,null,null,null,null,null,null,null,26]
["Bank name",null,null,null,null,null,null,null,null,null,null,null,null,null,null,null,27]
["Address",null,null,null,null,null,null,null,null,null,null,null,null,null,null,null,28]
["Postal code  ",null,null,null,null,null,null,null,null,null,null,null,null,null,null,null,29]
["City/Town",null,null,null,null,null,null,null,null,null,null,null,null,null,null,null,30]
["State","Slovenia",null,null,null,null,null,null,null,null,null,null,null,null,null,null,31]
["Account number",null,null,null,null,null,null,null,null,null,null,null,null,null,null,null,32]
["IBAN",null,null,null,null,null,null,null,null,null,null,null,null,null,null,null,33]
["BIC/SWIFT code ",null,null,null,null,null,null,null,null,null,null,null,null,null,null,null,34]
[null,null,null,null,null,null,null,null,null,null,null,null,null,null,null,null,35]
["Eligibility of the applicant",null,null,null,null,null,null,null,null,null,null,null,null,null,null,null,36]
[null,null,null,null,null,null,null,null,null,null,null,null,null,null,null,null,37]
["Choose accordingly",null,null,null,null,null,null,null,null,null,null,null,null,null,null,null,38]
[null,"The applicant is a manager of a Natura 2000 site or part of it.",null,null,null,null,null,null,null,null,null,null,null,null,null,null,39]
[null,"The applicant has experience with monitoring of species and/or habitat types. ",null,null,null,null,null,null,null,null,null,null,null,null,null,null,40]
[null,null,null,null,null,null,null,null,null,null,null,null,null,null,null,null,41]
[null,null,null,null,null,null,null,null,null,null,null,null,null,null,null,null,42]
["If the applicant has any experience in the field of monitoring of species and/or habitat types, define such experiences. It is desirable that you provide relevant supporting documents as justification of the experience.",null,null,null,null,null,null,null,null,null,null,null,null,null,null,null,43]
[null,null,null,null,null,null,"Max 2000 character.",null,null,null,null,null,null,null,null,null,44]
[null,null,null,null,null,null,null,null,null,null,null,null,null,null,null,null,45]
["If the applicant is authorised to manage the selected Natura 2000 site or part of it, specify the legal basis. ",null,null,null,null,null,null,null,null,null,null,null,null,null,null,null,46]
[]
[]
[]
["If the applicant is not authorised to manage the selected Natura 2000 site or part of it, specify the authorised partner and the legal basis. "]
[null,null,null,null,null,null,"Max 500 characters."]
[]
["Specify the legal basis, on the basis of which the applicant is responsible for the management of the selected national protected area."]
[null,null,null,null,null,null,"max. 500 characters"]
[]
["Indicate the estimated number of visitors to the area of natural value or values in the context of the national natural protected area, which are the subject of the project, in the past three years (total and by individual years)."]
[null,null,null,null,null,null,"max. 1000 characters"]
[]
["Specify whether the applicant is the owner or the manager of the cultural monument. "]
[null,"The applicant is the owner of the cultural monument.",null,null,null,null,"Fill in YES or NO."]
[null,"The applicant is the manager of the cultural monument. ",null,null,null,null,"Fill in YES or NO."]
[null,null,null,null,null,null,null,null,null,null,null,null,null,null,null,null,36]
["Description of the applicant ",null,null,null,null,null,null,null,null,null,null,null,null,null,null,null,37]
[]
["Describe the applicant’s main regular activities.",null,null,null,null,null,null,null,null,null,null,null,null,null,null,null,38]
[null,null,null,null,null,null,"Max 750 character.",null,null,null,null,null,null,null,null,null,39]
[null,null,null,null,null,null,null,null,null,null,null,null,null,null,null,null,40]
["Describe skills and experience in the field of management and coordination of projects. Especially emphasize the projects financed under the EU funds or other international sources. Please provide information on the key projects of similar complexity in the past ten years, for the later specify the name of the project and its value, your role and acquired knowledge and experience."]
[null,null,null,null,null,null,"Max 2000 character."]
[]
[]
["Contribution of the applicant to the project "]
["Describe the expected contribution of the applicant to the project: its role and responsibility during the implementation of the project. Describe to which outcomes and outputs of the project the applicant will contribute."]
[null,null,null,null,null,null,"Max 2000 characters."]
[]
["Partners"]
[]
["Please provide the official name of the institution for each partner. It is also desirable to specify the organizational unit. Select the status from the drop-down list. Fill in official address, tax and registration number. If you wish, you can write a phone number and website of the applicant. Provide the information about the person in charge of the institution. Fill in the required information about the contact person, while the contact address should be specified only insofar as it is different from the official. "]
[]
["Number of partners",10,null,null,null,null,"Select the number of partners from the list."]
[]
[]
["Partner N",1]
["Name of the institution"]
["Status ","legal entity under public law"]
["Official address"]
["Address"]
["Postal code  "]
["City/Town"]
["State"]
["Tax number "]
["Registration number"]
["Phone"]
["Website"]
["Person in charge of the institution"]
["Name and surname"]
["E-mail"]
["Contact person"]
["Name and surname"]
["Phone"]
["E-mail"]
["Address"]
["Postal code  "]
["City/Town"]
["State"]
[]
["Contribution of the partner to the project "]
["Describe the expected contribution of the partner to the project: give reasons for the inclusion of the individual project partner, its role and responsibility during the implementation of the project. Describe to which outcomes and results of the project each project partner will contribute."]
[null,null,null,null,null,null,"Max 2000 characters."]
[]
["Partner N",2]
["Name of the institution"]
["Status ","legal entity under public law"]
["Official address"]
["Address"]
["Postal code  "]
["City/Town"]
["State"]
["Tax number "]
["Registration number"]
["Phone"]
["Website"]
["Person in charge of the institution"]
["Name and surname"]
["E-mail"]
["Contact person"]
["Name and surname"]
["Phone"]
["E-mail"]
["Address"]
["Postal code  "]
["City/Town"]
["State"]
[]
["Contribution of the partner to the project "]
["Describe the expected contribution of the partner to the project: give reasons for the inclusion of the individual project partner, its role and responsibility during the implementation of the project. Describe to which outcomes and results of the project each project partner will contribute."]
[null,null,null,null,null,null,"Max 2000 characters."]
[]
["Partner N",3]
["Name of the institution"]
["Status ","legal entity under public law"]
["Official address"]
["Address"]
["Postal code  "]
["City/Town"]
["State"]
["Tax number "]
["Registration number"]
["Phone"]
["Website"]
["Person in charge of the institution"]
["Name and surname"]
["E-mail"]
["Contact person"]
["Name and surname"]
["Phone"]
["E-mail"]
["Address"]
["Postal code  "]
["City/Town"]
["State"]
[]
["Contribution of the partner to the project "]
["Describe the expected contribution of the partner to the project: give reasons for the inclusion of the individual project partner, its role and responsibility during the implementation of the project. Describe to which outcomes and results of the project each project partner will contribute."]
[null,null,null,null,null,null,"Max 2000 characters."]
[]
["Partner N",4]
["Name of the institution"]
["Status ","legal entity under public law"]
["Official address"]
["Address"]
["Postal code  "]
["City/Town"]
["State"]
["Tax number "]
["Registration number"]
["Phone"]
["Website"]
["Person in charge of the institution"]
["Name and surname"]
["E-mail"]
["Contact person"]
["Name and surname"]
["Phone"]
["E-mail"]
["Address"]
["Postal code  "]
["City/Town"]
["State"]
[]
["Contribution of the partner to the project "]
["Describe the expected contribution of the partner to the project: give reasons for the inclusion of the individual project partner, its role and responsibility during the implementation of the project. Describe to which outcomes and results of the project each project partner will contribute."]
[null,null,null,null,null,null,"Max 2000 characters"]
[]
["Partner N",5]
["Name of the institution"]
["Status ","legal entity under public law"]
["Official address"]
["Address"]
["Postal code  "]
["City/Town"]
["State"]
["Tax number "]
["Registration number"]
["Phone"]
["Website"]
["Person in charge of the institution"]
["Name and surname"]
["E-mail"]
["Contact person"]
["Name and surname"]
["Phone"]
["E-mail"]
["Address"]
["Postal code  "]
["City/Town"]
["State"]
[]
["Contribution of the partner to the project "]
["Describe the expected contribution of the partner to the project: give reasons for the inclusion of the individual project partner, its role and responsibility during the implementation of the project. Describe to which outcomes and results of the project each project partner will contribute."]
[null,null,null,null,null,null,"Max 2000 characters"]
[]
["Partner N",6]
["Name of the institution"]
["Status ","legal entity under public law"]
["Official address"]
["Address"]
["Postal code  "]
["City/Town"]
["State"]
["Tax number "]
["Registration number"]
["Phone"]
["Website"]
["Person in charge of the institution"]
["Name and surname"]
["E-mail"]
["Contact person"]
["Name and surname"]
["Phone"]
["E-mail"]
["Address"]
["Postal code  "]
["City/Town"]
["State"]
[]
["Contribution of the partner to the project "]
["Describe the expected contribution of the partner to the project: give reasons for the inclusion of the individual project partner, its role and responsibility during the implementation of the project. Describe to which outcomes and results of the project each project partner will contribute."]
[null,null,null,null,null,null,"Max 2000 characters."]
[]
["Partner N",7]
["Name of the institution"]
["Status ","legal entity under public law"]
["Official address"]
["Address"]
["Postal code  "]
["City/Town"]
["State"]
["Tax number "]
["Registration number"]
["Phone"]
["Website"]
["Person in charge of the institution"]
["Name and surname"]
["E-mail"]
["Contact person"]
["Name and surname"]
["Phone"]
["E-mail"]
["Address"]
["Postal code  "]
["City/Town"]
["State"]
[]
["Contribution of the partner to the project "]
["Describe the expected contribution of the partner to the project: give reasons for the inclusion of the individual project partner, its role and responsibility during the implementation of the project. Describe to which outcomes and results of the project each project partner will contribute."]
[null,null,null,null,null,null,"Max 2000 characters"]
[]
["Partner N",8]
["Name of the institution"]
["Status ","legal entity under public law"]
["Official address"]
["Address"]
["Postal code  "]
["City/Town"]
["State"]
["Tax number "]
["Registration number"]
["Phone"]
["Website"]
["Person in charge of the institution"]
["Name and surname"]
["E-mail"]
["Contact person"]
["Name and surname"]
["Phone"]
["E-mail"]
["Address"]
["Postal code  "]
["City/Town"]
["State"]
[]
["Contribution of the partner to the project "]
["Describe the expected contribution of the partner to the project: give reasons for the inclusion of the individual project partner, its role and responsibility during the implementation of the project. Describe to which outcomes and results of the project each project partner will contribute."]
[null,null,null,null,null,null,"Max 2000 characters"]
[]
["Partner N",9]
["Name of the institution"]
["Status ","legal entity under public law"]
["Official address"]
["Address"]
["Postal code  "]
["City/Town"]
["State"]
["Tax number "]
["Registration number"]
["Phone"]
["Website"]
["Person in charge of the institution"]
["Name and surname"]
["E-mail"]
["Contact person"]
["Name and surname"]
["Phone"]
["E-mail"]
["Address"]
["Postal code  "]
["City/Town"]
["State"]
[]
["Contribution of the partner to the project "]
["Describe the expected contribution of the partner to the project: give reasons for the inclusion of the individual project partner, its role and responsibility during the implementation of the project. Describe to which outcomes and results of the project each project partner will contribute."]
[null,null,null,null,null,null,"Max 2000 characters"]
[]
["Partner N",10]
["Name of the institution"]
["Status ","legal entity under public law"]
["Official address"]
["Address"]
["Postal code  "]
["City/Town"]
["State"]
["Tax number "]
["Registration number"]
["Phone"]
["Website"]
["Person in charge of the institution"]
["Name and surname"]
["E-mail"]
["Contact person"]
["Name and surname"]
["Phone"]
["E-mail"]
["Address"]
["Postal code  "]
["City/Town"]
["State"]
[]
["Contribution of the partner to the project "]
["Describe the expected contribution of the partner to the project: give reasons for the inclusion of the individual project partner, its role and responsibility during the implementation of the project. Describe to which outcomes and results of the project each project partner will contribute."]
[null,null,null,null,null,null,"Max 2000 characters"]
[]
["The qualifications of the project team for the implementation of the project"]
["Staff and technical capacity"]
[]
["Describe the applicant’s and each partner’s staff and technical capacity relevant for the implementation of the project."]
[null,null,null,null,null,null,"Max 3000 characters."]
[]
["Monitoring of species and/or habitat types"]
[]
["If the applicant and/or project partner carries out the activities of monitoring of species and/or habitat types, specify the applicant’s and/or project partner’s experience in the field of monitoring of those species and/or habitat types addresses by the project."]
[null,null,null,null,null,null,"Max 3000 characters."]
[]
["Project team"]
[]
["Provide all members of the project team of the applicant and partner (Partner 1, Partner 2, etc.) which are taking part in the implementation of the project. List all the foreseen persons even if the names are not yet known. Please specify their role in the project (e.g., project leader, lawyer, financier, the contractor of the project, etc.) and their knowledge and experience with areas, significant for the implementation of the project."]
[]
["Number of project team members",null,10,null,null,null,"Select the number of project team members from the list."]
["Name and surname","Applicant / partner No","Role in the project","Key knowledge and experience in the area in the call important for the implementation of the project"]
[null,null,null,null,null,null,"Max 500 characters for the specification of key knowledge and experience"]

{"sheet":"PROJECT DESCRIPTION","index":5,"n_rows":40,"n_cols":17,"rows_kept":40,"cut":false,"hidden":false,"merged":[[9,0,9,7],[4,0,4,7],[5,0,5,7],[2,0,2,7],[3,0,3,7],[6,0,6,7],[7,0,7,7],[8,0,8,7],[17,0,17,7],[18,0,18,7],[22,0,22,7],[23,0,23,7],[10,0,10,7],[11,0,11,7],[12,0,12,7],[13,0,13,7],[14,0,14,7],[15,0,15,7],[28,0,28,2],[27,0,27,7],[29,0,29,2],[30,0,30,2],[28,3,28,7],[29,3,29,7],[39,0,39,7],[36,0,36,6],[37,0,37,6],[38,0,38,7],[30,3,30,7],[32,1,32,7],[33,1,33,7],[34,1,34,7],[35,1,35,7]]}
["5. PROJECT DESCRIPTION",null,null,null,null,null,null,null,null,null,null,null,null,"podrojce",{"$f":"'BASIC INFORMATION'!B29","v":3},1,{"$f":"'LOGICAL FRAME (B1)'!A14","v":"More efficient management and monitoring of Natura 2000 sites"}]
[null,null,null,null,null,null,null,null,null,null,null,null,null,null,null,2,{"$f":"'LOGICAL FRAME (B2)'!A14","v":"Natural heritage made publically accessible "}]
["Justification of the project",null,null,null,null,null,null,null,null,null,null,null,null,"splošni cilj",{"$f":"VLOOKUP(O1,P1:Q3,2,0)","v":"Cultural heritage restored, renovated and protected"},3,{"$f":"'LOGICAL FRAME (B3)'!A14","v":"Cultural heritage restored, renovated and protected"}]
[]
["Justify in a comprehensive manner the issue addressed by the project, and how the project will contribute to solving the issue."]
[]
["Justification of the project and outline of the issue"]
[null,null,null,null,null,null,null,null,null,"Max 3000 characters."]
[]
["Contribution of the project to solving the issue "]
[null,null,null,null,null,null,null,null,null,"Največ 3000 znakov."]
[]
["Objectives of the project"]
[]
["General objectives of the project"]
[{"$f":"O3","v":"Cultural heritage restored, renovated and protected"},null,null,null,null,null,null,null,null,null,"Katero podpodročje?"]
[]
["Insofar the specific objectives exist, specify them."]
[null,null,null,null,null,null,null,null,null,"Max 500 characters."]
[]
["Target groups"]
[]
["Describe the target groups which are the aim of the project results. "]
[null,null,null,null,null,null,null,null,null,"Max 1500 characters."]
[]
["Kulturni spomenik"]
[]
["Specify the name of the cultural monument, register number and the date of entry into force of declaration of the cultural heritage.   "]
["Name of the cultural monument",null,null,null,null,null,null,null,null,"Max 300 characters."]
["Register number of the heritage"]
["Date of entry into force of declaration of the cultural heritage"]
[null,"Indicate the status of the cultural monument:"]
[null,"The cultural monument is included in the UNESCO World Heritage List, the UNESCO and national trial World Heritage List or the holder of the European Cultural Heritage Label.",null,null,null,null,null,null,null,"Fill in YES or NO."]
[null,"The cultural monument is declared as a monument of national importance.",null,null,null,null,null,null,null,"Fill in YES or NO."]
[null,"The cultural monument is evaluated as a monument of national importance.",null,null,null,null,null,null,null,"Fill in YES or NO."]
[null,"The cultural monument is declared as a monument of local importance or was declared as a monument before the enforcement of the Cultural Heritage Protection Act (Official Gazette of the Republic of Slovenia No 7/99).",null,null,null,null,null,null,null,"Fill in YES or NO."]
["Is the cultural monument defined as public cultural infrastructure?",null,null,null,null,null,null,null,null,"Fill in YES or NO."]
["Is the cultural monument due to injuries and the risk of demolition at risk of losing the protected properties? ",null,null,null,null,null,null,null,null,"Fill in YES or NO."]
["If YES, describe damage to the monument and provide a statement of the risk to the cultural monument."]
[null,null,null,null,null,null,null,null,null,"Max 2000 characters."]

{"sheet":"LOGICAL FRAME (B1)","index":6,"n_rows":30,"n_cols":20,"rows_kept":30,"cut":false,"hidden":false,"merged":[[10,6,12,9],[13,6,18,9],[19,6,23,9],[3,0,3,9],[4,0,4,9],[5,0,5,9],[6,0,6,9],[7,0,7,9],[13,5,18,5],[10,1,12,1],[12,4,12,5],[10,0,12,0],[10,2,11,5],[24,4,28,4],[13,0,33,0],[13,1,18,1],[13,2,18,2],[13,3,18,3],[13,4,18,4],[19,1,23,1],[19,2,23,2],[19,3,23,3],[19,4,23,4],[39,5,43,5],[19,5,23,5],[9,7,9,8],[34,1,38,1],[34,2,38,2],[34,3,38,3],[34,4,38,4],[34,5,38,5],[29,1,33,1],[29,2,33,2],[29,3,33,3],[29,4,33,4],[29,5,33,5],[24,1,28,1],[24,2,28,2],[24,3,28,3],[54,1,58,1],[54,2,58,2],[54,3,58,3],[54,4,58,4],[54,5,58,5],[0,0,0,9],[49,1,53,1],[49,2,53,2],[49,3,53,3],[49,4,53,4],[49,5,53,5],[24,5,28,5],[44,1,48,1],[44,2,48,2],[44,3,48,3],[44,4,48,4],[44,5,48,5],[39,1,43,1],[39,2,43,2],[39,3,43,3],[39,4,43,4],[49,6,53,9],[54,6,58,9],[24,6,28,9],[29,6,33,9],[34,6,38,9],[39,6,43,9],[44,6,48,9]]}
["The logical coherence of the content of the project and contribution of the project to the achievement of programme outputs",null,null,null,null,null,null,null,null,null,null,null,null,null,null,0,null,null,"podpodročje",{"$f":"'BASIC INFORMATION'!B29","v":3}]
[null,null,null,null,null,null,null,null,null,null,null,null,null,null,null,1]
[null,null,null,null,null,null,null,null,null,null,null,null,null,null,null,2]
["The logical coherence of the project content or substantive thread of the project follows the “read line” of the selected area of the call. First, select to which outcomes the project will contribute, select one or more statistical region (NUTS 3), where the project outcomes will be visible. Also specify the target values of the outcome indicator. You can add up to five new outcomes. For the selected outcome (s) of the project describe at least one key result of the project, specify the indicators and target values of result indicators and, where relevant, also the initial values of the indicator. Indicate up to five key results of the project for each outcome.\n",null,null,null,null,null,null,null,null,null,null,null,null,null,null,3]
[null,null,null,null,null,null,null,null,null,null,null,null,null,null,null,4]
["Na področju Biotska raznovrstnost in ekosistemske storitve naj projekt vključuje (1) kazalnik rezultatov število vrst in/ali habitatnih tipov v neugodnem stanju ohranjenosti, ki jih varstveni ukrepi naslavljajo (kazalnik je vezan na prvi in drugi učinek projekta) in (2) ali kazalnik števila spremljanja stanja vrst in/ali habitatnih tipov, ki jih naslavljajo v okviru projekta izvedeni varstveni ukrepi ali kazalnik števila vrst in/ali habitatnih tipov, katerih stanje se bo spremljalo v okviru projekta, ki niso neposredno povezani z varstvenimi ukrepi na terenu in katerih stanje ohranjenosti ne neznano (kazalnika se vežeta na tretji učinek projekta).",null,null,null,null,null,null,null,null,null,null,null,null,null,null,5]
["Make sure that the project will include output indicators, which are tied to mandatory types of activities."]
["Področje razpisa Biotska raznovrstnost in ekosistemske storitve"]
[]
[null,null,null,null,null,null,null,"Select the number of additional outcomes",null,5,null,"An additional outcome means an additional project outcome that you define yourself, besides those already mentioned in the table set by the programme."]
["GENERAL\nPROJECT OBJECTIVE\n(= programme outcome)\n","Mark","PROJECT OUTCOME\n(= programme output)",null,null,null,"KEY PROJECT OUTPUTS\n(description of outputs and its indicator  with the initial and target value)\n",null,null,null,null,null,null,null,null,null,null,null,null,10]
[]
[null,null,"Description","Outcome location","Outcome indicator (description and target value)"]
["More efficient management and monitoring of Natura 2000 sites",null,"Adequate management (measures requested by the the Natura 2000 management programme) with extensive meadows and/or protective or flooded forests within Natura 2000 sites hosting important populations of Natura 2000 species and/or habitat types.",null,"surface  area (ha) of measures targeting grassland (the aim of the programme is increase to 580 ha) and/or forest species/habitat types (the aim of the programme is increase to 7,500 ha)",null,null,null,null,null,null,"Max 750 characters for key project outputs"]
[]
[]
[]
[]
[]
[null,null,"Adequate management (measures requested by the the Natura 2000 management programme) with wetlands within Natura 2000 sites hosting important Natura 2000 populations of species and/or habitat types.",null,"Surface area (ha) of the measures targeting wetland species ad/or habitat types  (the aim of the programme is increase for 30 ha) "]
[]
[]
[]
[]
[null,null,"Monitoring of the parameters to determine the conservation status of grassland and/or forest and/or wetland species and/or habitat types",null,"number and share of monitored Natura 2000 species/habitat types (the aim of the programme is an increase by 6 species/habitat types)"]
[]
[]
[]
[]
[null,null,"Acceptance of the implementation of Natura 2000 site management programme and conservation measures implemented in project activities",null,"number of key stakeholders (the aim of the programme is increase by 250 people)"]

{"sheet":"LOGICAL FRAME (B2)","index":7,"n_rows":30,"n_cols":20,"rows_kept":30,"cut":false,"hidden":false,"merged":[[9,7,9,8],[3,0,3,9],[4,0,4,9],[5,0,5,9],[6,0,6,9],[7,0,7,9],[10,0,12,0],[10,1,12,1],[10,2,11,5],[12,4,12,5],[10,6,12,9],[13,4,18,4],[24,4,28,4],[13,5,18,5],[19,4,23,4],[19,5,23,5],[19,1,33,1],[13,0,33,0],[13,1,18,1],[13,2,18,2],[13,3,18,3],[54,1,58,1],[54,2,58,2],[54,3,58,3],[54,4,58,4],[54,5,58,5],[44,1,48,1],[44,2,48,2],[44,3,48,3],[44,4,48,4],[44,5,48,5],[49,1,53,1],[49,2,53,2],[49,3,53,3],[49,4,53,4],[49,5,53,5],[13,6,18,9],[29,6,33,9],[34,6,38,9],[39,6,43,9],[0,0,0,9],[39,1,43,1],[39,2,43,2],[39,3,43,3],[39,4,43,4],[39,5,43,5],[24,5,28,5],[34,1,38,1],[34,2,38,2],[34,3,38,3],[34,4,38,4],[34,5,38,5],[44,6,48,9],[49,6,53,9],[54,6,58,9],[19,2,33,2],[19,3,33,3],[19,6,23,9],[24,6,28,9],[29,4,33,4],[29,5,33,5]]}
["The logical coherence of the content of the project and contribution of the project to the achievement of programme outputs",null,null,null,null,null,null,null,null,null,null,null,null,null,null,0,null,null,"podpodročje",{"$f":"'BASIC INFORMATION'!B29","v":3}]
[null,null,null,null,null,null,null,null,null,null,null,null,null,null,null,1]
[null,null,null,null,null,null,null,null,null,null,null,null,null,null,null,2]
["The logical coherence of the project content or substantive thread of the project follows the “read line” of the selected area of the call. First, select to which outcomes the project will contribute, select one or more statistical region (NUTS 3), where the project outcomes will be visible. Also specify the target values of the outcome indicator. You can add up to five new outcomes. For the selected outcome (s) of the project describe at least one key result of the project, specify the indicators and target values of result indicators and, where relevant, also the initial values of the indicator. Indicate up to five key results of the project for each outcome.\n",null,null,null,null,null,null,null,null,null,null,null,null,null,null,3]
[null,null,null,null,null,null,null,null,null,null,null,null,null,null,null,4]
["In the area Natural heritage the obligatory project output is at least one newly developed public infrastructure facility for visits of natural heritage site; and at least 25% decrease of visits with individual motor vehicle transport within one year after the completion of the work.  ",null,null,null,null,null,null,null,null,null,null,null,null,null,null,5]
[]
["Area Natural heritage"]
[]
[null,null,null,null,null,null,null,"Select the number of additional outcomes",null,5,null,"An additional outcome means an additional project outcome that you define yourself, besides those already mentioned in the table set by the programme."]
["GENERAL\nPROJECT OBJECTIVE\n(= programme outcome)\n","Mark","PROJECT OUTCOME\n(= programme output)",null,null,null,"KEY PROJECT OUTPUTS\n(description of outputs and its indicator  with the initial and target value)\n",null,null,null,null,null,null,null,null,null,null,null,null,10]
[]
[null,null,"Description","Outcome location","Outcome indicator (description and target value)"]
["Natural heritage made publically accessible ",null,"Establishment of new public infrastructure for visitors of the most important natural heritage sites in the national protected areas",null,"New infrastructure facilities (the objective of the programme is 1 - 3)",null,null,null,null,null,null,"Max 750 characters for key project outputs"]
[]
[]
[]
[]
[]
[null,null,"Visitor infrastructure that successfully connects safe-guarding of natural heritage site and better public access to natural heritage site",null,"Number of visitors of the protected area annually that experience the protected area e in a non-damaging way (the objective of the programme is non-increase)"]
[]
[]
[]
[]
[null,null,null,null,"Number of visitors of the protected area using motor vehicle (objective of the programme – reduction by 1250)"]
[]
[]
[]
[]
[null,null,null,null,"New infrastructure that safeguards natural aspects, and offers environmental education and experiencing nature to users (the objective is 1)"]

{"sheet":"LOGICAL FRAME (B3)","index":8,"n_rows":20,"n_cols":20,"rows_kept":20,"cut":false,"hidden":false,"merged":[[9,7,9,8],[3,0,3,9],[4,0,4,9],[5,0,5,9],[6,0,6,9],[7,0,7,9],[10,0,12,0],[10,1,12,1],[10,2,11,5],[12,4,12,5],[10,6,12,9],[24,5,28,5],[19,5,23,5],[13,1,18,1],[13,2,18,2],[13,3,18,3],[13,4,18,4],[13,5,18,5],[19,1,23,1],[19,2,23,2],[19,3,23,3],[19,4,23,4],[34,1,38,1],[34,2,38,2],[34,3,38,3],[34,4,38,4],[34,5,38,5],[44,1,48,1],[44,2,48,2],[44,3,48,3],[44,4,48,4],[44,5,48,5],[0,0,0,9],[13,0,23,0],[39,1,43,1],[39,2,43,2],[39,3,43,3],[39,4,43,4],[29,1,33,1],[29,2,33,2],[29,3,33,3],[29,4,33,4],[24,1,28,1],[24,2,28,2],[24,3,28,3],[24,4,28,4],[39,5,43,5],[29,5,33,5],[39,6,43,9],[44,6,48,9],[13,6,18,9],[19,6,23,9],[24,6,28,9],[29,6,33,9],[34,6,38,9]]}
["The logical coherence of the content of the project and contribution of the project to the achievement of programme outputs",null,null,null,null,null,null,null,null,null,null,null,null,null,null,0,null,null,"podpodročje",{"$f":"'BASIC INFORMATION'!B29","v":3}]
[null,null,null,null,null,null,null,null,null,null,null,null,null,null,null,1]
[null,null,null,null,null,null,null,null,null,null,null,null,null,null,null,2]
["The logical coherence of the project content or substantive thread of the project follows the “read line” of the selected area of the call. First, select to which outcomes the project will contribute, select one or more statistical region (NUTS 3), where the project outcomes will be visible. Also specify the target values of the outcome indicator. You can add up to five new outcomes. For the selected outcome (s) of the project describe at least one key result of the project, specify the indicators and target values of result indicators and, where relevant, also the initial values of the indicator. Indicate up to five key results of the project for each outcome.\n",null,null,null,null,null,null,null,null,null,null,null,null,null,null,3]
[null,null,null,null,null,null,null,null,null,null,null,null,null,null,null,4]
["In the area Cultural heritage the obligatory output is at least one cultural monument renovated or restored.",null,null,null,null,null,null,null,null,null,null,null,null,null,null,5]
[]
["Area Cultural heritage"]
[]
[null,null,null,null,null,null,null,"Select the number of additional outcomes",null,5,null,"An additional outcome means an additional project outcome that you define yourself, besides those already mentioned in the table set by the programme."]
["GENERAL\nPROJECT OBJECTIVE\n(= programme outcome)\n","Mark","PROJECT OUTCOME\n(= programme output)",null,null,null,"KEY PROJECT OUTPUTS\n(description of outputs and its indicator  with the initial and target value)\n",null,null,null,null,null,null,null,null,null,null,null,null,10]
[]
[null,null,"Description","Outcome location","Outcome indicator (description and target value)"]
["Cultural heritage restored, renovated and protected",null,"Restore, renovated and protected cultural monuments",null,"Number of restored, renovated and protected cultural monuments (the objective of the programme is 3)",null,null,null,null,null,null,"Max 750 characters for key project outputs"]
[]
[]
[]
[]
[]
[null,null,"Increased access to cultural heritage",null,"Percentage of increased number of visitors of the restored, renovated and protected cultural heritage (the objective of the programme is 5%)"]

{"sheet":"WORK PLAN (B1)","index":9,"n_rows":122,"n_cols":20,"rows_kept":122,"cut":false,"hidden":false,"merged":[[4,0,4,7],[9,0,10,0],[9,2,9,8],[10,2,10,8],[2,0,2,8],[3,0,3,8],[8,2,8,7],[6,2,6,7],[11,0,12,0],[11,1,12,1],[11,2,12,2],[11,3,11,5],[116,0,116,8],[57,0,58,0],[57,2,57,8],[58,2,58,8],[11,6,12,6],[11,7,12,7],[11,8,12,8],[12,4,12,5],[115,0,115,8],[42,2,42,8],[25,0,26,0],[27,0,28,0],[27,1,28,1],[27,2,28,2],[27,6,28,6],[27,7,28,7],[25,2,25,8],[26,2,26,8],[27,3,27,5],[27,8,28,8],[28,4,28,5],[41,0,42,0],[41,2,41,8],[43,0,44,0],[43,1,44,1],[43,2,44,2],[43,3,43,5],[43,6,44,6],[43,7,44,7],[43,8,44,8],[44,4,44,5],[108,0,108,8],[109,0,109,8],[112,0,112,8],[114,0,114,8],[59,8,60,8],[60,4,60,5],[59,0,60,0],[59,1,60,1],[59,2,60,2],[59,3,59,5],[59,6,60,6],[59,7,60,7],[73,0,74,0],[73,2,73,8],[74,2,74,8],[75,0,76,0],[117,0,117,8],[118,0,118,8],[119,0,119,8],[120,0,120,8],[121,0,121,8],[75,8,76,8],[76,4,76,5],[75,1,76,1],[75,2,76,2],[75,3,75,5],[75,6,76,6],[75,7,76,7],[91,7,92,7],[91,8,92,8],[92,4,92,5],[89,0,90,0],[89,2,89,8],[90,2,90,8],[91,0,92,0],[91,1,92,1],[91,2,92,2],[91,3,91,5],[91,6,92,6],[24,2,24,7],[40,2,40,7],[56,2,56,7],[72,2,72,7],[88,2,88,7]]}
["Project work plan",null,null,null,null,null,null,null,null,null,null,null,null,null,null,null,null,null,null,0]
[null,null,null,null,null,null,null,null,null,null,null,null,null,null,null,null,null,null,null,1]
["Please describe the working sets (WS) and activities within individual working sets. For each activity, please provide all of the planned achieved results and their indicators with target values. Please indicate who will be involved in an individual activity (the applicant, Partner 1, Partner 2, etc.). Specify the cost of individual activities, and also the country of the implementation of activities. Obligatory for each project are at least two working sets: WS1 – Management and coordination and WS2 - Information and publicity. Project may provide up to six working sets in the project work plan.",null,null,null,null,null,null,null,null,null,null,null,null,null,null,null,null,null,null,2]
["In the areas Biodiversity and ecosystem services project must also include the following two working sets: WS3 - Protective measures in the field and WS4 - Monitoring (the working sets are already foreseen). If monitoring of species and/or habitat types, which are addressed by the protective measures in the field, carried out within framework of the project, is foreseen, provide, in the description of WS 4, the potential past monitoring and the rationale of the need for further implementation of such activities in the framework of the project. \nIn the obligatory WS2 - Information and publicity project must include the activities of information, education and awareness-raising on the significance of the management of Natura 2000 sites and the conservation measures, which are implemented within the project, which are targeted at or include local interest groups (local communities, organisations of farmers or the owners of forests, fishermen, hunters, local tourist and non-governmental organisations which operate in the field of nature preservation). \nThe applicant must also provide that the data collected within the project are digitalized. Specify the type of database in which the data will be arranged. Indicate whether the data will be arranged in accordance with the standards of the which keeps the database in the field of nature conservation and which are ready to be included into the spatial data portal for a regulatory record of biodiversity\n\n",null,null,null,null,null,null,null,null,null,null,null,null,null,null,null,null,null,null,3]
[null,null,null,null,null,null,null,null,null,null,null,null,null,null,null,null,null,null,null,4]
[null,null,null,null,null,null,null,null,null,null,null,null,null,null,null,null,null,null,null,5]
[null,null,"Number of additional WS: ",null,null,null,null,null,2,null,"Select the number of additional WS. An additional WS means and additional WS that you define yourself, besides the mandatory ones.",null,null,null,null,null,null,null,null,6]
[null,null,null,null,null,null,null,null,null,null,null,null,null,null,null,null,null,null,null,7]
[null,null,"Additional ACT in  \"Management and coordination\"",null,null,null,null,null,9,null,"Select the number of activities in the WS (number of additional activities, beside the mandatory one).",null,null,null,null,null,null,null,null,8]
["WS 1","WS name","Management and coordination",null,null,null,null,null,null,null,null,null,null,null,null,null,null,null,null,9]
[null,"WS description",null,null,null,null,null,null,null,null,"Max 1000 characters.",null,null,null,null,null,null,null,null,10]
[null,"Name of the activity","Description of the activity","All project outputs",null,null,"Applicant and/or partner","Foreseen costs","Country of the implementation of activity*"]
[null,null,null,"Description","Indicators and target value"]
["ACT 1.1",null,null,null,null,null,null,null,null,null,"Max 750 characters for the description of the activity and max 200 characters for the decription of project outputs."]
["ACT 1.2",null,null,null,null,null,null,null,null,null,"Max 750 characters for the description of the activity and max 200 characters for the decription of project outputs."]
["ACT 1.3",null,null,null,null,null,null,null,null,null,"Max 750 characters for the description of the activity and max 200 characters for the decription of project outputs."]
["ACT 1.4",null,null,null,null,null,null,null,null,null,"Max 750 characters for the description of the activity and max 200 characters for the decription of project outputs."]
["ACT 1.5",null,null,null,null,null,null,null,null,null,"Max 750 characters for the description of the activity and max 200 characters for the decription of project outputs"]
["ACT 1.6",null,null,null,null,null,null,null,null,null,"Max 750 characters for the description of the activity and max 200 characters for the decription of project outputs"]
["ACT 1.7",null,null,null,null,null,null,null,null,null,"Max 750 characters for the description of the activity and max 200 characters for the decription of project outputs."]
["ACT 1.8",null,null,null,null,null,null,null,null,null,"Max 750 characters for the description of the activity and max 200 characters for the decription of project outputs."]
["ACT 1.9",null,null,null,null,null,null,null,null,null,"Max 750 characters for the description of the activity and max 200 characters for the decription of project outputs."]
["ACT 1.10",null,null,null,null,null,null,null,null,null,"Max 750 characters for the description of the activity and max 200 characters for the decription of project outputs."]
[]
[null,null,"Additional ACT in  \"Information and publicity\"",null,null,null,null,null,0,null,"Select the number of activities in the WS (number of additional activities, beside the mandatory one)"]
["WS 2","WS name","Information and publicity"]
[null,"WS description",null,null,null,null,null,null,null,null,"Max 1000 characters"]
[null,"Name of the activity","Description of the activity","All project outputs",null,null,"Applicant and/or partner","Foreseen costs","Country of the implementation of activity*"]
[null,null,null,"Description","Indicators and target value"]
["ACT 2.1",null,null,null,null,null,null,null,null,null,"Max 750 characters for the description of the activity and max 200 characters for the decription of project outputs."]
["ACT 2.2",null,null,null,null,null,null,null,null,null,"Max 750 characters for the description of the activity and max 200 characters for the decription of project outputs."]
["ACT 2.3",null,null,null,null,null,null,null,null,null,"Max 750 characters for the description of the activity and max 200 characters for the decription of project outputs."]
["ACT 2.4",null,null,null,null,null,null,null,null,null,"Max 750 characters for the description of the activity and max 200 characters for the decription of project outputs."]
["ACT 2.5",null,null,null,null,null,null,null,null,null,"Max 750 characters for the description of the activity and max 200 characters for the decription of project outputs."]
["ACT 2.6",null,null,null,null,null,null,null,null,null,"Max 750 characters for the description of the activity and max 200 characters for the decription of project outputs."]
["ACT 2.7",null,null,null,null,null,null,null,null,null,"Max 750 characters for the description of the activity and max 200 characters for the decription of project outputs."]
["ACT 2.8",null,null,null,null,null,null,null,null,null,"Max 750 characters for the description of the activity and max 200 characters for the decription of project outputs."]
["ACT 2.9",null,null,null,null,null,null,null,null,null,"Max 750 characters for the description of the activity and max 200 characters for the decription of project outputs."]
["ACT 2.10",null,null,null,null,null,null,null,null,null,"Max 750 characters for the description of the activity and max 200 characters for the decription of project outputs."]
[]
[null,null,"Additional ACT in  \"Protective measures in the field\"",null,null,null,null,null,0,null,"Select the number of activities in the WS (number of additional activities, beside the mandatory one)"]
["WS 3","WS name","Protective measures in the field"]
[null,"WS description",null,null,null,null,null,null,null,null,"Max 1000 characters"]
[null,"Name of the activity","Description of the activity","All project outputs",null,null,"Applicant and/or partner","Foreseen costs","Country of the implementation of activity*"]
[null,null,null,"Description","Indicators and target value"]
["ACT 3.1",null,null,null,null,null,null,null,null,null,"Max 750 characters for the description of the activity and max 200 characters for the decription of project outputs."]
["ACT 3.2",null,null,null,null,null,null,null,null,null,"Max 750 characters for the description of the activity and max 200 characters for the decription of project outputs."]
["ACT 3.3",null,null,null,null,null,null,null,null,null,"Max 750 characters for the description of the activity and max 200 characters for the decription of project outputs."]
["ACT 3.4",null,null,null,null,null,null,null,null,null,"Max 750 characters for the description of the activity and max 200 characters for the decription of project outputs."]
["ACT 3.5",null,null,null,null,null,null,null,null,null,"Max 750 characters for the description of the activity and max 200 characters for the decription of project outputs."]
["ACT 3.6",null,null,null,null,null,null,null,null,null,"Max 750 characters for the description of the activity and max 200 characters for the decription of project outputs."]
["ACT 3.7",null,null,null,null,null,null,null,null,null,"Max 750 characters for the description of the activity and max 200 characters for the decription of project outputs."]
["ACT 3.8",null,null,null,null,null,null,null,null,null,"Max 750 characters for the description of the activity and max 200 characters for the decription of project outputs."]
["ACT 3.9",null,null,null,null,null,null,null,null,null,"Max 750 characters for the description of the activity and max 200 characters for the decription of project outputs."]
["ACT 3.10",null,null,null,null,null,null,null,null,null,"Max 750 characters for the description of the activity and max 200 characters for the decription of project outputs."]
[]
[null,null,"Additional ACT in  \"Monitoring \"",null,null,null,null,null,0,null,"Select the number of activities in the WS (number of additional activities, beside the mandatory one)"]
["WS 4","WS name","Monitoring "]
[null,"WS description",null,null,null,null,null,null,null,null,"Max 1000 characters"]
[null,"Name of the activity","Description of the activity","All project outputs",null,null,"Applicant and/or partner","Foreseen costs","Country of the implementation of activity*"]
[null,null,null,"Description","Indicators and target value"]
["ACT 4.1",null,null,null,null,null,null,null,null,null,"Max 750 characters for the description of the activity and max 200 characters for the decription of project outputs."]
["ACT 4.2",null,null,null,null,null,null,null,null,null,"Max 750 characters for the description of the activity and max 200 characters for the decription of project outputs."]
["ACT 4.3",null,null,null,null,null,null,null,null,null,"Max 750 characters for the description of the activity and max 200 characters for the decription of project outputs."]
["ACT 4.4",null,null,null,null,null,null,null,null,null,"Max 750 characters for the description of the activity and max 200 characters for the decription of project outputs."]
["ACT 4.5",null,null,null,null,null,null,null,null,null,"Max 750 characters for the description of the activity and max 200 characters for the decription of project outputs."]
["ACT 4.6",null,null,null,null,null,null,null,null,null,"Max 750 characters for the description of the activity and max 200 characters for the decription of project outputs."]
["ACT 4.7",null,null,null,null,null,null,null,null,null,"Max 750 characters for the description of the activity and max 200 characters for the decription of project outputs."]
["ACT 4.8",null,null,null,null,null,null,null,null,null,"Max 750 characters for the description of the activity and max 200 characters for the decription of project outputs."]
["ACT 4.9",null,null,null,null,null,null,null,null,null,"Max 750 characters for the description of the activity and max 200 characters for the decription of project outputs."]
["ACT 4.10",null,null,null,null,null,null,null,null,null,"Max 750 characters for the description of the activity and max 200 characters for the decription of project outputs."]
[]
[null,null,"Additional ACT",null,null,null,null,null,0,null,"Select the number of activities in the WS (number of additional activities, beside the mandatory one)"]
["WS 5","WS name"]
[null,"WS description",null,null,null,null,null,null,null,null,"Max 1000 characters"]
[null,"Name of the activity","Description of the activity","All project outputs",null,null,"Applicant and/or partner","Foreseen costs","Country of the implementation of activity*"]
[null,null,null,"Description","Indicators and target value"]
["ACT 5.1",null,null,null,null,null,null,null,null,null,"Max 750 characters for the description of the activity and max 200 characters for the decription of project outputs."]
["ACT 5.2",null,null,null,null,null,null,null,null,null,"Max 750 characters for the description of the activity and max 200 characters for the decription of project outputs."]
["ACT 5.3",null,null,null,null,null,null,null,null,null,"Max 750 characters for the description of the activity and max 200 characters for the decription of project outputs."]
["ACT 5.4",null,null,null,null,null,null,null,null,null,"Max 750 characters for the description of the activity and max 200 characters for the decription of project outputs."]
["ACT 5.5",null,null,null,null,null,null,null,null,null,"Max 750 characters for the description of the activity and max 200 characters for the decription of project outputs."]
["ACT 5.6",null,null,null,null,null,null,null,null,null,"Max 750 characters for the description of the activity and max 200 characters for the decription of project outputs."]
["ACT 5.7",null,null,null,null,null,null,null,null,null,"Max 750 characters for the description of the activity and max 200 characters for the decription of project outputs."]
["ACT 5.8",null,null,null,null,null,null,null,null,null,"Max 750 characters for the description of the activity and max 200 characters for the decription of project outputs."]
["ACT 5.9",null,null,null,null,null,null,null,null,null,"Max 750 characters for the description of the activity and max 200 characters for the decription of project outputs."]
["ACT 5.10",null,null,null,null,null,null,null,null,null,"Max 750 characters for the description of the activity and max 200 characters for the decription of project outputs."]
[]
[null,null,"Additional ACT",null,null,null,null,null,0,null,"Select the number of activities in the WS (number of additional activities, beside the mandatory one)"]
["WS 6","WS name"]
[null,"WS description",null,null,null,null,null,null,null,null,"Max 1000 characters"]
[null,"Name of the activity","Description of the activity","All project outputs",null,null,"Applicant and/or partner","Foreseen costs","Country of the implementation of activity*"]
[null,null,null,"Description","Indicators and target value"]
["ACT 6.1",null,null,null,null,null,null,null,null,null,"Max 750 characters for the description of the activity and max 200 characters for the decription of project outputs."]
["ACT 6.2",null,null,null,null,null,null,null,null,null,"Max 750 characters for the description of the activity and max 200 characters for the decription of project outputs."]
["ACT 6.3",null,null,null,null,null,null,null,null,null,"Max 750 characters for the description of the activity and max 200 characters for the decription of project outputs."]
["ACT 6.4",null,null,null,null,null,null,null,null,null,"Max 750 characters for the description of the activity and max 200 characters for the decription of project outputs."]
["ACT 6.5",null,null,null,null,null,null,null,null,null,"Max 750 characters for the description of the activity and max 200 characters for the decription of project outputs."]
["ACT 6.6",null,null,null,null,null,null,null,null,null,"Max 750 characters for the description of the activity and max 200 characters for the decription of project outputs."]
["ACT 6.7",null,null,null,null,null,null,null,null,null,"Max 750 characters for the description of the activity and max 200 characters for the decription of project outputs."]
["ACT 6.8",null,null,null,null,null,null,null,null,null,"Max 750 characters for the description of the activity and max 200 characters for the decription of project outputs."]
["ACT 6.9",null,null,null,null,null,null,null,null,null,"Max 750 characters for the description of the activity and max 200 characters for the decription of project outputs."]
["ACT 6.10",null,null,null,null,null,null,null,null,null,"Max 750 characters for the description of the activity and max 200 characters for the decription of project outputs."]
[]
[]
[]
[]
[]
["*The eligible area of the implementation of the activity is the area of the Republic of Slovenia and the Donor States. If you think that the activity is essential for the implementation of the project and cannot be implemented within the eligible area, give an adequate justification."]
[null,null,null,null,null,null,null,null,null,null,"Max 750 characters."]
[]
[]
["Sustainability of project results"]
[]
["Financial and institutional sustainability"]
[]
["Explain how the sustainability of projects results in the technical and institutional sense will be provided. Do you plan to continue with certain project activities after the closure of co-financing?"]
[null,null,null,null,null,null,null,null,null,null,"Max 2500 characters."]
[]
["Long-term impact on the target group"]
["Describe the long-term impacts of the project on the target group. How will the use of project results be enabled for various target groups and other potential stakeholders?"]
[null,null,null,null,null,null,null,null,null,null,"Max 2500 characters."]

{"sheet":"WORK PLAN (B2)","index":10,"n_rows":122,"n_cols":22,"rows_kept":122,"cut":false,"hidden":false,"merged":[[11,8,12,8],[12,4,12,5],[25,0,26,0],[25,2,25,8],[26,2,26,8],[11,0,12,0],[11,1,12,1],[2,0,2,8],[3,0,3,7],[4,0,4,7],[9,0,10,0],[9,2,9,8],[10,2,10,8],[27,8,28,8],[28,4,28,5],[41,0,42,0],[41,2,41,8],[42,2,42,8],[27,0,28,0],[27,1,28,1],[27,2,28,2],[27,3,27,5],[27,6,28,6],[43,8,44,8],[44,4,44,5],[57,0,58,0],[57,2,57,8],[58,2,58,8],[43,0,44,0],[43,1,44,1],[43,2,44,2],[43,3,43,5],[43,6,44,6],[43,7,44,7],[59,8,60,8],[60,4,60,5],[73,0,74,0],[73,2,73,8],[74,2,74,8],[59,0,60,0],[59,1,60,1],[59,2,60,2],[59,3,59,5],[59,6,60,6],[72,2,72,7],[112,0,112,8],[75,8,76,8],[76,4,76,5],[89,0,90,0],[89,2,89,8],[90,2,90,8],[91,0,92,0],[91,1,92,1],[91,2,92,2],[91,3,91,5],[91,6,92,6],[75,0,76,0],[75,1,76,1],[75,2,76,2],[75,3,75,5],[75,6,76,6],[91,7,92,7],[91,8,92,8],[92,4,92,5],[108,0,108,8],[109,0,109,8],[120,0,120,8],[121,0,121,8],[114,0,114,8],[115,0,115,8],[116,0,116,8],[117,0,117,8],[118,0,118,8],[119,0,119,8],[88,2,88,7],[6,4,6,7],[8,2,8,7],[24,2,24,7],[40,2,40,7],[56,2,56,7],[75,7,76,7],[59,7,60,7],[27,7,28,7],[11,2,12,2],[11,3,11,5],[11,6,12,6],[11,7,12,7]]}
["Project work plan",null,null,null,null,null,null,null,null,null,null,null,null,null,null,null,null,null,null,0,null,1]
[null,null,null,null,null,null,null,null,null,null,null,null,null,null,null,null,null,null,null,1]
["Please describe the working sets (WS) and activities within individual working sets. For each activity, please provide all of the planned achieved results and their indicators with target values. Please indicate who will be involved in an individual activity (the applicant, Partner 1, Partner 2, etc.). Specify the cost of individual activities, and also the country of the implementation of activities. Obligatory for each project are at least two working sets: WS1 – Management and coordination and WS2 - Information and publicity. Project may provide up to six working sets in the project work plan.",null,null,null,null,null,null,null,null,null,null,null,null,null,null,null,null,null,null,2]
[null,null,null,null,null,null,null,null,null,null,null,null,null,null,null,null,null,null,null,3]
[null,null,null,null,null,null,null,null,null,null,null,null,null,null,null,null,null,null,null,4]
[null,null,null,null,null,null,null,null,null,null,null,null,null,null,null,null,null,null,null,5]
[null,null,null,null,"Number of additional WS: ",null,null,null,0,null,"Select the number of additional WS. An additional WS means and additional WS that you define yourself, besides the mandatory ones.",null,null,null,null,null,null,null,null,6]
[null,null,null,null,null,null,null,null,null,null,null,null,null,null,null,null,null,null,null,7]
[null,null,"Additional ACT in  \"Management and coordination\"",null,null,null,null,null,0,null,"Select the number of activities in the WS (number of additional activities, beside the mandatory one).",null,null,null,null,null,null,null,null,8]
["WS 1","WS name","Management and coordination",null,null,null,null,null,null,null,null,null,null,null,null,null,null,null,null,9]
[null,"WS description",null,null,null,null,null,null,null,null,"Max 1000 characters.",null,null,null,null,null,null,null,null,10]
[null,"Name of the activity","Description of the activity","All project outputs",null,null,"Applicant and/or partner","Foreseen costs","Country of the implementation of activity*"]
[null,null,null,"Description","Indicators and target value"]
["ACT 1.1",null,null,null,null,null,null,null,null,null,"Max 750 characters for the description of the activity and max 200 characters for the decription of project outputs."]
["ACT 1.2",null,null,null,null,null,null,null,null,null,"Max 750 characters for the description of the activity and max 200 characters for the decription of project outputs."]
["ACT 1.3",null,null,null,null,null,null,null,null,null,"Max 750 characters for the description of the activity and max 200 characters for the decription of project outputs."]
["ACT 1.4",null,null,null,null,null,null,null,null,null,"Max 750 characters for the description of the activity and max 200 characters for the decription of project outputs."]
["ACT 1.5",null,null,null,null,null,null,null,null,null,"Max 750 characters for the description of the activity and max 200 characters for the decription of project outputs."]
["ACT 1.6",null,null,null,null,null,null,null,null,null,"Max 750 characters for the description of the activity and max 200 characters for the decription of project outputs."]
["ACT 1.7",null,null,null,null,null,null,null,null,null,"Max 750 characters for the description of the activity and max 200 characters for the decription of project outputs."]
["ACT 1.8",null,null,null,null,null,null,null,null,null,"Max 750 characters for the description of the activity and max 200 characters for the decription of project outputs."]
["ACT 1.9",null,null,null,null,null,null,null,null,null,"Max 750 characters for the description of the activity and max 200 characters for the decription of project outputs."]
["ACT 1.10",null,null,null,null,null,null,null,null,null,"Max 750 characters for the description of the activity and max 200 characters for the decription of project outputs."]
[]
[null,null,"Additional ACT in  \"Information and publicity\"",null,null,null,null,null,0,null,"Select the number of activities in the WS (number of additional activities, beside the mandatory one)."]
["WS 2","WS name","Information and publicity"]
[null,"WS description",null,null,null,null,null,null,null,null,"Max 1000 characters."]
[null,"Name of the activity","Description of the activity","All project outputs",null,null,"Applicant and/or partner","Foreseen costs","Country of the implementation of activity*"]
[null,null,null,"Description","Indicators and target value"]
["ACT 2.1",null,null,null,null,null,null,null,null,null,"Max 750 characters for the description of the activity and max 200 characters for the decription of project outputs."]
["ACT 2.2",null,null,null,null,null,null,null,null,null,"Max 750 characters for the description of the activity and max 200 characters for the decription of project outputs."]
["ACT 2.3",null,null,null,null,null,null,null,null,null,"Max 750 characters for the description of the activity and max 200 characters for the decription of project outputs."]
["ACT 2.4",null,null,null,null,null,null,null,null,null,"Max 750 characters for the description of the activity and max 200 characters for the decription of project outputs."]
["ACT 2.5",null,null,null,null,null,null,null,null,null,"Max 750 characters for the description of the activity and max 200 characters for the decription of project outputs."]
["ACT 2.6",null,null,null,null,null,null,null,null,null,"Max 750 characters for the description of the activity and max 200 characters for the decription of project outputs."]
["ACT 2.7",null,null,null,null,null,null,null,null,null,"Max 750 characters for the description of the activity and max 200 characters for the decription of project outputs."]
["ACT 2.8",null,null,null,null,null,null,null,null,null,"Max 750 characters for the description of the activity and max 200 characters for the decription of project outputs."]
["ACT 2.9",null,null,null,null,null,null,null,null,null,"Max 750 characters for the description of the activity and max 200 characters for the decription of project outputs."]
["ACT 2.10",null,null,null,null,null,null,null,null,null,"Max 750 characters for the description of the activity and max 200 characters for the decription of project outputs."]
[]
[null,null,"Additional ACT:",null,null,null,null,null,0,null,"Select the number of activities in the WS (number of additional activities, beside the mandatory one)."]
["WS 3","WS name"]
[null,"WS description",null,null,null,null,null,null,null,null,"Max 1000 characters."]
[null,"Name of the activity","Description of the activity","All project outputs",null,null,"Applicant and/or partner","Foreseen costs","Country of the implementation of activity*"]
[null,null,null,"Description","Indicators and target value"]
["ACT 3.1",null,null,null,null,null,null,null,null,null,"Max 750 characters for the description of the activity and max 200 characters for the decription of project outputs."]
["ACT 3.2",null,null,null,null,null,null,null,null,null,"Max 750 characters for the description of the activity and max 200 characters for the decription of project outputs."]
["ACT 3.3",null,null,null,null,null,null,null,null,null,"Max 750 characters for the description of the activity and max 200 characters for the decription of project outputs."]
["ACT 3.4",null,null,null,null,null,null,null,null,null,"Max 750 characters for the description of the activity and max 200 characters for the decription of project outputs."]
["ACT 3.5",null,null,null,null,null,null,null,null,null,"Max 750 characters for the description of the activity and max 200 characters for the decription of project outputs."]
["ACT 3.6",null,null,null,null,null,null,null,null,null,"Max 750 characters for the description of the activity and max 200 characters for the decription of project outputs."]
["ACT 3.7",null,null,null,null,null,null,null,null,null,"Max 750 characters for the description of the activity and max 200 characters for the decription of project outputs."]
["ACT 3.8",null,null,null,null,null,null,null,null,null,"Max 750 characters for the description of the activity and max 200 characters for the decription of project outputs."]
["ACT 3.9",null,null,null,null,null,null,null,null,null,"Max 750 characters for the description of the activity and max 200 characters for the decription of project outputs."]
["ACT 3.10",null,null,null,null,null,null,null,null,null,"Max 750 characters for the description of the activity and max 200 characters for the decription of project outputs."]
[]
[null,null,"Additional ACT:",null,null,null,null,null,0,null,"Select the number of activities in the WS (number of additional activities, beside the mandatory one)."]
["WS 4","WS name"]
[null,"WS description",null,null,null,null,null,null,null,null,"Max 1000 characters."]
[null,"Name of the activity","Description of the activity","All project outputs",null,null,"Applicant and/or partner","Foreseen costs","Country of the implementation of activity*"]
[null,null,null,"Description","Indicators and target value"]
["ACT 4.1",null,null,null,null,null,null,null,null,null,"Max 750 characters for the description of the activity and max 200 characters for the decription of project outputs."]
["ACT 4.2",null,null,null,null,null,null,null,null,null,"Max 750 characters for the description of the activity and max 200 characters for the decription of project outputs."]
["ACT 4.3",null,null,null,null,null,null,null,null,null,"Max 750 characters for the description of the activity and max 200 characters for the decription of project outputs."]
["ACT 4.4",null,null,null,null,null,null,null,null,null,"Max 750 characters for the description of the activity and max 200 characters for the decription of project outputs."]
["ACT 4.5",null,null,null,null,null,null,null,null,null,"Max 750 characters for the description of the activity and max 200 characters for the decription of project outputs."]
["ACT 4.6",null,null,null,null,null,null,null,null,null,"Max 750 characters for the description of the activity and max 200 characters for the decription of project outputs."]
["ACT 4.7",null,null,null,null,null,null,null,null,null,"Max 750 characters for the description of the activity and max 200 characters for the decription of project outputs."]
["ACT 4.8",null,null,null,null,null,null,null,null,null,"Max 750 characters for the description of the activity and max 200 characters for the decription of project outputs."]
["ACT 4.9",null,null,null,null,null,null,null,null,null,"Max 750 characters for the description of the activity and max 200 characters for the decription of project outputs."]
["ACT 4.10",null,null,null,null,null,null,null,null,null,"Max 750 characters for the description of the activity and max 200 characters for the decription of project outputs."]
[]
[null,null,"Additional ACT:",null,null,null,null,null,0,null,"Select the number of activities in the WS (number of additional activities, beside the mandatory one)."]
["WS 5","WS name"]
[null,"WS description",null,null,null,null,null,null,null,null,"Max 1000 characters."]
[null,"Name of the activity","Description of the activity","All project outputs",null,null,"Applicant and/or partner","Foreseen costs","Country of the implementation of activity*"]
[null,null,null,"Description","Indicators and target value"]
["ACT 5.1",null,null,null,null,null,null,null,null,null,"Max 750 characters for the description of the activity and max 200 characters for the decription of project outputs."]
["ACT 5.2",null,null,null,null,null,null,null,null,null,"Max 750 characters for the description of the activity and max 200 characters for the decription of project outputs."]
["ACT 5.3",null,null,null,null,null,null,null,null,null,"Max 750 characters for the description of the activity and max 200 characters for the decription of project outputs."]
["ACT 5.4",null,null,null,null,null,null,null,null,null,"Max 750 characters for the description of the activity and max 200 characters for the decription of project outputs."]
["ACT 5.5",null,null,null,null,null,null,null,null,null,"Max 750 characters for the description of the activity and max 200 characters for the decription of project outputs."]
["ACT 5.6",null,null,null,null,null,null,null,null,null,"Max 750 characters for the description of the activity and max 200 characters for the decription of project outputs."]
["ACT 5.7",null,null,null,null,null,null,null,null,null,"Max 750 characters for the description of the activity and max 200 characters for the decription of project outputs."]
["ACT 5.8",null,null,null,null,null,null,null,null,null,"Max 750 characters for the description of the activity and max 200 characters for the decription of project outputs."]
["ACT 5.9",null,null,null,null,null,null,null,null,null,"Max 750 characters for the description of the activity and max 200 characters for the decription of project outputs."]
["ACT 5.10",null,null,null,null,null,null,null,null,null,"Max 750 characters for the description of the activity and max 200 characters for the decription of project outputs."]
[]
[null,null,"Additional ACT:",null,null,null,null,null,0,null,"Select the number of activities in the WS (number of additional activities, beside the mandatory one)."]
["WS 6","WS name"]
[null,"WS description",null,null,null,null,null,null,null,null,"Max 1000 characters."]
[null,"Name of the activity","Description of the activity","All project outputs",null,null,"Applicant and/or partner","Foreseen costs","Country of the implementation of activity*"]
[null,null,null,"Description","Indicators and target value"]
["ACT 6.1",null,null,null,null,null,null,null,null,null,"Max 750 characters for the description of the activity and max 200 characters for the decription of project outputs."]
["ACT 6.2",null,null,null,null,null,null,null,null,null,"Max 750 characters for the description of the activity and max 200 characters for the decription of project outputs."]
["ACT 6.3",null,null,null,null,null,null,null,null,null,"Max 750 characters for the description of the activity and max 200 characters for the decription of project outputs."]
["ACT 6.4",null,null,null,null,null,null,null,null,null,"Max 750 characters for the description of the activity and max 200 characters for the decription of project outputs."]
["ACT 6.5",null,null,null,null,null,null,null,null,null,"Max 750 characters for the description of the activity and max 200 characters for the decription of project outputs."]
["ACT 6.6",null,null,null,null,null,null,null,null,null,"Max 750 characters for the description of the activity and max 200 characters for the decription of project outputs."]
["ACT 6.7",null,null,null,null,null,null,null,null,null,"Max 750 characters for the description of the activity and max 200 characters for the decription of project outputs."]
["ACT 6.8",null,null,null,null,null,null,null,null,null,"Max 750 characters for the description of the activity and max 200 characters for the decription of project outputs."]
["ACT 6.9",null,null,null,null,null,null,null,null,null,"Max 750 characters for the description of the activity and max 200 characters for the decription of project outputs."]
["ACT 6.10",null,null,null,null,null,null,null,null,null,"Max 750 characters for the description of the activity and max 200 characters for the decription of project outputs."]
[]
[]
[]
[]
[]
["*The eligible area of the implementation of the activity is the area of the Republic of Slovenia and the Donor States. If you think that the activity is essential for the implementation of the project and cannot be implemented within the eligible area, give an adequate justification."]
[null,null,null,null,null,null,null,null,null,null,"Max 750 characters."]
[]
[]
["Sustainability of project results"]
[]
["Financial and institutional sustainability"]
[]
["Explain how the sustainability of projects results in the technical and institutional sense will be provided. Do you plan to continue with certain project activities after the closure of co-financing?"]
[null,null,null,null,null,null,null,null,null,null,"Max 2500 characters."]
[]
["Long-term impact on the target group"]
["Describe the long-term impacts of the project on the target group. How will the use of project results be enabled for various target groups and other potential stakeholders?"]
[null,null,null,null,null,null,null,null,null,null,"Max 2500 characters."]

{"sheet":"WORK PLAN (B3)","index":11,"n_rows":122,"n_cols":22,"rows_kept":122,"cut":false,"hidden":false,"merged":[[4,0,4,7],[9,0,10,0],[9,2,9,8],[10,2,10,8],[2,0,2,8],[3,0,3,8],[8,2,8,7],[6,2,6,7],[11,7,12,7],[11,8,12,8],[12,4,12,5],[25,0,26,0],[25,2,25,8],[26,2,26,8],[11,0,12,0],[11,1,12,1],[11,2,12,2],[11,3,11,5],[11,6,12,6],[24,2,24,7],[27,7,28,7],[27,8,28,8],[28,4,28,5],[41,0,42,0],[41,2,41,8],[42,2,42,8],[27,0,28,0],[27,1,28,1],[27,2,28,2],[27,3,27,5],[27,6,28,6],[40,2,40,7],[43,7,44,7],[43,8,44,8],[44,4,44,5],[57,0,58,0],[57,2,57,8],[58,2,58,8],[43,0,44,0],[43,1,44,1],[43,2,44,2],[43,3,43,5],[43,6,44,6],[56,2,56,7],[59,7,60,7],[59,8,60,8],[60,4,60,5],[73,0,74,0],[73,2,73,8],[74,2,74,8],[59,0,60,0],[59,1,60,1],[59,2,60,2],[59,3,59,5],[59,6,60,6],[72,2,72,7],[75,7,76,7],[75,8,76,8],[76,4,76,5],[89,0,90,0],[89,2,89,8],[90,2,90,8],[75,0,76,0],[75,1,76,1],[75,2,76,2],[75,3,75,5],[75,6,76,6],[88,2,88,7],[91,7,92,7],[91,8,92,8],[92,4,92,5],[108,0,108,8],[109,0,109,8],[91,0,92,0],[91,1,92,1],[91,2,92,2],[91,3,91,5],[91,6,92,6],[118,0,118,8],[119,0,119,8],[120,0,120,8],[121,0,121,8],[112,0,112,8],[114,0,114,8],[115,0,115,8],[116,0,116,8],[117,0,117,8]]}
["Project work plan",null,null,null,null,null,null,null,null,null,null,null,null,null,null,null,null,null,null,0,null,1]
[null,null,null,null,null,null,null,null,null,null,null,null,null,null,null,null,null,null,null,1]
["Please describe the working sets (WS) and activities within individual working sets. For each activity, please provide all of the planned achieved results and their indicators with target values. Please indicate who will be involved in an individual activity (the applicant, Partner 1, Partner 2, etc.). Specify the cost of individual activities, and also the country of the implementation of activities. Obligatory for each project are at least two working sets: WS1 – Management and coordination and WS2 - Information and publicity. Project may provide up to six working sets in the project work plan.",null,null,null,null,null,null,null,null,null,null,null,null,null,null,null,null,null,null,2]
["In addition to the mandatory WS1 and WS3, project in the area Cultural heritage must include WS3 – Accessibility of cultural heritage (the working set is already foreseen) which provides “soft” activities to increase the accessibility to cultural heritage (for example design of attractive programmes for vulnerable groups and the young population) to which at least 5% of the grant to co-finance the project should be allocated.\n\n",null,null,null,null,null,null,null,null,null,null,null,null,null,null,null,null,null,null,3]
[null,null,null,null,null,null,null,null,null,null,null,null,null,null,null,null,null,null,null,4]
[null,null,null,null,null,null,null,null,null,null,null,null,null,null,null,null,null,null,null,5]
[null,null,"Number of additional WS: ",null,null,null,null,null,3,null,"Select the number of additional WS. An additional WS means and additional WS that you define yourself, besides the mandatory ones.",null,null,null,null,null,null,null,null,6]
[null,null,null,null,null,null,null,null,null,null,null,null,null,null,null,null,null,null,null,7]
[null,null,"Additional ACT in  \"Management and coordination\"",null,null,null,null,null,9,null,"Select the number of activities in the WS (number of additional activities, beside the mandatory one).",null,null,null,null,null,null,null,null,8]
["WS 1","WS name","Management and coordination",null,null,null,null,null,null,null,null,null,null,null,null,null,null,null,null,9]
[null,"WS description",null,null,null,null,null,null,null,null,"Max 1000 characters.",null,null,null,null,null,null,null,null,10]
[null,"Name of the activity","Description of the activity","All project outputs",null,null,"Applicant and/or partner","Foreseen costs","Country of the implementation of activity*"]
[null,null,null,"Description","Indicators and target value"]
["ACT 1.1",null,null,null,null,null,null,null,null,null,"Max 750 characters for the description of the activity and max 200 characters for the decription of project outputs."]
["ACT 1.2",null,null,null,null,null,null,null,null,null,"Max 750 characters for the description of the activity and max 200 characters for the decription of project outputs."]
["ACT 1.3",null,null,null,null,null,null,null,null,null,"Max 750 characters for the description of the activity and max 200 characters for the decription of project outputs."]
["ACT 1.4",null,null,null,null,null,null,null,null,null,"Max 750 characters for the description of the activity and max 200 characters for the decription of project outputs."]
["ACT 1.5",null,null,null,null,null,null,null,null,null,"Max 750 characters for the description of the activity and max 200 characters for the decription of project outputs."]
["ACT 1.6",null,null,null,null,null,null,null,null,null,"Max 750 characters for the description of the activity and max 200 characters for the decription of project outputs."]
["ACT 1.7",null,null,null,null,null,null,null,null,null,"Max 750 characters for the description of the activity and max 200 characters for the decription of project outputs."]
["ACT 1.8",null,null,null,null,null,null,null,null,null,"Max 750 characters for the description of the activity and max 200 characters for the decription of project outputs."]
["ACT 1.9",null,null,null,null,null,null,null,null,null,"Max 750 characters for the description of the activity and max 200 characters for the decription of project outputs."]
["ACT 1.10",null,null,null,null,null,null,null,null,null,"Max 750 characters for the description of the activity and max 200 characters for the decription of project outputs."]
[]
[null,null,"Additional ACT in  \"Information and publicity\"",null,null,null,null,null,0,null,"Select the number of activities in the WS (number of additional activities, beside the mandatory one)."]
["WS 2","WS name","Information and publicity"]
[null,"WS description",null,null,null,null,null,null,null,null,"Največ 1000 znakov."]
[null,"Name of the activity","Description of the activity","All project outputs",null,null,"Applicant and/or partner","Foreseen costs","Country of the implementation of activity*"]
[null,null,null,"Description","Indicators and target value"]
["ACT 2.1",null,null,null,null,null,null,null,null,null,"Max 750 characters for the description of the activity and max 200 characters for the decription of project outputs."]
["ACT 2.2",null,null,null,null,null,null,null,null,null,"Max 750 characters for the description of the activity and max 200 characters for the decription of project outputs."]
["ACT 2.3",null,null,null,null,null,null,null,null,null,"Max 750 characters for the description of the activity and max 200 characters for the decription of project outputs."]
["ACT 2.4",null,null,null,null,null,null,null,null,null,"Max 750 characters for the description of the activity and max 200 characters for the decription of project outputs."]
["ACT 2.5",null,null,null,null,null,null,null,null,null,"Max 750 characters for the description of the activity and max 200 characters for the decription of project outputs."]
["ACT 2.6",null,null,null,null,null,null,null,null,null,"Max 750 characters for the description of the activity and max 200 characters for the decription of project outputs."]
["ACT 2.7",null,null,null,null,null,null,null,null,null,"Max 750 characters for the description of the activity and max 200 characters for the decription of project outputs."]
["ACT 2.8",null,null,null,null,null,null,null,null,null,"Max 750 characters for the description of the activity and max 200 characters for the decription of project outputs."]
["ACT 2.9",null,null,null,null,null,null,null,null,null,"Max 750 characters for the description of the activity and max 200 characters for the decription of project outputs."]
["ACT 2.10",null,null,null,null,null,null,null,null,null,"Max 750 characters for the description of the activity and max 200 characters for the decription of project outputs."]
[]
[null,null,"Additional ACT",null,null,null,null,null,1,null,"Select the number of activities in the WS (number of additional activities, beside the mandatory one)."]
["WS 3","WS name","Access to cultural heritage "]
[null,"WS description",null,null,null,null,null,null,null,null,"Max 1000 characters."]
[null,"Name of the activity","Description of the activity","All project outputs",null,null,"Applicant and/or partner","Foreseen costs","Country of the implementation of activity*"]
[null,null,null,"Description","Indicators and target value"]
["ACT 3.1",null,null,null,null,null,null,null,null,null,"Max 750 characters for the description of the activity and max 200 characters for the decription of project outputs."]
["ACT 3.2",null,null,null,null,null,null,null,null,null,"Max 750 characters for the description of the activity and max 200 characters for the decription of project outputs."]
["ACT 3.3",null,null,null,null,null,null,null,null,null,"Max 750 characters for the description of the activity and max 200 characters for the decription of project outputs."]
["ACT 3.4",null,null,null,null,null,null,null,null,null,"Max 750 characters for the description of the activity and max 200 characters for the decription of project outputs."]
["ACT 3.5",null,null,null,null,null,null,null,null,null,"Max 750 characters for the description of the activity and max 200 characters for the decription of project outputs."]
["ACT 3.6",null,null,null,null,null,null,null,null,null,"Max 750 characters for the description of the activity and max 200 characters for the decription of project outputs."]
["ACT 3.7",null,null,null,null,null,null,null,null,null,"Max 750 characters for the description of the activity and max 200 characters for the decription of project outputs."]
["ACT 3.8",null,null,null,null,null,null,null,null,null,"Max 750 characters for the description of the activity and max 200 characters for the decription of project outputs."]
["ACT 3.9",null,null,null,null,null,null,null,null,null,"Max 750 characters for the description of the activity and max 200 characters for the decription of project outputs."]
["ACT 3.10",null,null,null,null,null,null,null,null,null,"Max 750 characters for the description of the activity and max 200 characters for the decription of project outputs."]
[]
[null,null,"Additional ACT",null,null,null,null,null,0,null,"Select the number of activities in the WS (number of additional activities, beside the mandatory one)"]
["WS 4","WS name"]
[null,"WS description",null,null,null,null,null,null,null,null,"Max 1000 characters"]
[null,"Name of the activity","Description of the activity","All project outputs",null,null,"Applicant and/or partner","Foreseen costs","Country of the implementation of activity*"]
[null,null,null,"Description","Indicators and target value"]
["ACT 4.1",null,null,null,null,null,null,null,null,null,"Max 750 characters for the description of the activity and max 200 characters for the decription of project outputs."]
["ACT 4.2",null,null,null,null,null,null,null,null,null,"Max 750 characters for the description of the activity and max 200 characters for the decription of project outputs."]
["ACT 4.3",null,null,null,null,null,null,null,null,null,"Max 750 characters for the description of the activity and max 200 characters for the decription of project outputs."]
["ACT 4.4",null,null,null,null,null,null,null,null,null,"Max 750 characters for the description of the activity and max 200 characters for the decription of project outputs."]
["ACT 4.5",null,null,null,null,null,null,null,null,null,"Max 750 characters for the description of the activity and max 200 characters for the decription of project outputs."]
["ACT 4.6",null,null,null,null,null,null,null,null,null,"Max 750 characters for the description of the activity and max 200 characters for the decription of project outputs."]
["ACT 4.7",null,null,null,null,null,null,null,null,null,"Max 750 characters for the description of the activity and max 200 characters for the decription of project outputs."]
["ACT 4.8",null,null,null,null,null,null,null,null,null,"Max 750 characters for the description of the activity and max 200 characters for the decription of project outputs."]
["ACT 4.9",null,null,null,null,null,null,null,null,null,"Max 750 characters for the description of the activity and max 200 characters for the decription of project outputs."]
["ACT 4.10",null,null,null,null,null,null,null,null,null,"Max 750 characters for the description of the activity and max 200 characters for the decription of project outputs."]
[]
[null,null,"Additional ACT",null,null,null,null,null,0,null,"Select the number of activities in the WS (number of additional activities, beside the mandatory one)."]
["WS 5","WS name"]
[null,"WS description",null,null,null,null,null,null,null,null,"Max 1000 characters."]
[null,"Name of the activity","Description of the activity","All project outputs",null,null,"Applicant and/or partner","Foreseen costs","Country of the implementation of activity*"]
[null,null,null,"Description","Indicators and target value"]
["ACT 5.1",null,null,null,null,null,null,null,null,null,"Max 750 characters for the description of the activity and max 200 characters for the decription of project outputs."]
["ACT 5.2",null,null,null,null,null,null,null,null,null,"Max 750 characters for the description of the activity and max 200 characters for the decription of project outputs."]
["ACT 5.3",null,null,null,null,null,null,null,null,null,"Max 750 characters for the description of the activity and max 200 characters for the decription of project outputs."]
["ACT 5.4",null,null,null,null,null,null,null,null,null,"Max 750 characters for the description of the activity and max 200 characters for the decription of project outputs."]
["ACT 5.5",null,null,null,null,null,null,null,null,null,"Max 750 characters for the description of the activity and max 200 characters for the decription of project outputs."]
["ACT 5.6",null,null,null,null,null,null,null,null,null,"Max 750 characters for the description of the activity and max 200 characters for the decription of project outputs."]
["ACT 5.7",null,null,null,null,null,null,null,null,null,"Max 750 characters for the description of the activity and max 200 characters for the decription of project outputs."]
["ACT 5.8",null,null,null,null,null,null,null,null,null,"Max 750 characters for the description of the activity and max 200 characters for the decription of project outputs."]
["ACT 5.9",null,null,null,null,null,null,null,null,null,"Max 750 characters for the description of the activity and max 200 characters for the decription of project outputs."]
["ACT 5.10",null,null,null,null,null,null,null,null,null,"Max 750 characters for the description of the activity and max 200 characters for the decription of project outputs."]
[]
[null,null,"Additional ACT",null,null,null,null,null,0,null,"Select the number of activities in the WS (number of additional activities, beside the mandatory one)."]
["WS 6","WS name"]
[null,"WS description",null,null,null,null,null,null,null,null,"Max 1000 characters."]
[null,"Name of the activity","Description of the activity","All project outputs",null,null,"Applicant and/or partner","Foreseen costs","Country of the implementation of activity*"]
[null,null,null,"Description","Indicators and target value"]
["ACT 6.1",null,null,null,null,null,null,null,null,null,"Max 750 characters for the description of the activity and max 200 characters for the decription of project outputs."]
["ACT 6.2",null,null,null,null,null,null,null,null,null,"Max 750 characters for the description of the activity and max 200 characters for the decription of project outputs."]
["ACT 6.3",null,null,null,null,null,null,null,null,null,"Max 750 characters for the description of the activity and max 200 characters for the decription of project outputs."]
["ACT 6.4",null,null,null,null,null,null,null,null,null,"Max 750 characters for the description of the activity and max 200 characters for the decription of project outputs."]
["ACT 6.5",null,null,null,null,null,null,null,null,null,"Max 750 characters for the description of the activity and max 200 characters for the decription of project outputs."]
["ACT 6.6",null,null,null,null,null,null,null,null,null,"Max 750 characters for the description of the activity and max 200 characters for the decription of project outputs."]
["ACT 6.7",null,null,null,null,null,null,null,null,null,"Max 750 characters for the description of the activity and max 200 characters for the decription of project outputs."]
["ACT 6.8",null,null,null,null,null,null,null,null,null,"Max 750 characters for the description of the activity and max 200 characters for the decription of project outputs."]
["ACT 6.9",null,null,null,null,null,null,null,null,null,"Max 750 characters for the description of the activity and max 200 characters for the decription of project outputs."]
["ACT 6.10",null,null,null,null,null,null,null,null,null,"Max 750 characters for the description of the activity and max 200 characters for the decription of project outputs."]
[]
[]
[]
[]
[]
["*The eligible area of the implementation of the activity is the area of the Republic of Slovenia and the Donor States. If you think that the activity is essential for the implementation of the project and cannot be implemented within the eligible area, give an adequate justification."]
[null,null,null,null,null,null,null,null,null,null,"Max 750 characters"]
[]
[]
["Sustainability of project results"]
[]
["Financial and institutional sustainability"]
[]
["Explain how the sustainability of projects results in the technical and institutional sense will be provided. Do you plan to continue with certain project activities after the closure of co-financing?"]
[null,null,null,null,null,null,null,null,null,null,"Max 2500 characters"]
[]
["Long-term impact on the target group"]
["Describe the long-term impacts of the project on the target group. How will the use of project results be enabled for various target groups and other potential stakeholders?"]
[null,null,null,null,null,null,null,null,null,null,"Max 2500 characters"]

{"sheet":"EQUIPMENT","index":12,"n_rows":273,"n_cols":11,"rows_kept":273,"cut":false,"hidden":false,"merged":[[7,4,7,9],[254,1,254,2],[255,1,255,2],[256,1,256,2],[257,1,257,2],[259,0,272,0],[259,1,259,2],[260,1,260,2],[261,1,261,2],[262,1,262,2],[263,1,263,2],[244,0,257,0],[270,1,270,2],[271,1,271,2],[272,1,272,2],[264,1,264,2],[265,1,265,2],[266,1,266,2],[267,1,267,2],[268,1,268,2],[269,1,269,2],[248,1,248,2],[249,1,249,2],[250,1,250,2],[251,1,251,2],[252,1,252,2],[253,1,253,2],[238,1,238,2],[239,1,239,2],[240,1,240,2],[241,1,241,2],[242,1,242,2],[244,1,244,2],[245,1,245,2],[246,1,246,2],[247,1,247,2],[229,0,242,0],[229,1,229,2],[230,1,230,2],[231,1,231,2],[232,1,232,2],[233,1,233,2],[234,1,234,2],[235,1,235,2],[236,1,236,2],[237,1,237,2],[222,1,222,2],[223,1,223,2],[224,1,224,2],[225,1,225,2],[226,1,226,2],[227,1,227,2],[212,1,212,2],[214,0,227,0],[214,1,214,2],[215,1,215,2],[216,1,216,2],[217,1,217,2],[218,1,218,2],[219,1,219,2],[220,1,220,2],[221,1,221,2],[208,1,208,2],[209,1,209,2],[210,1,210,2],[211,1,211,2],[196,1,196,2],[197,1,197,2],[199,0,212,0],[199,1,199,2],[200,1,200,2],[201,1,201,2],[202,1,202,2],[203,1,203,2],[204,1,204,2],[205,1,205,2],[184,0,197,0],[190,1,190,2],[191,1,191,2],[192,1,192,2],[193,1,193,2],[194,1,194,2],[195,1,195,2],[182,1,182,2],[184,1,184,2],[185,1,185,2],[186,1,186,2],[187,1,187,2],[188,1,188,2],[189,1,189,2],[206,1,206,2],[207,1,207,2],[169,0,182,0],[169,1,169,2],[170,1,170,2],[171,1,171,2],[172,1,172,2],[173,1,173,2],[158,1,158,2],[159,1,159,2],[160,1,160,2],[161,1,161,2],[162,1,162,2],[163,1,163,2],[174,1,174,2],[175,1,175,2],[176,1,176,2],[177,1,177,2],[178,1,178,2],[179,1,179,2],[164,1,164,2],[165,1,165,2],[166,1,166,2],[167,1,167,2],[180,1,180,2],[181,1,181,2],[148,1,148,2],[149,1,149,2],[150,1,150,2],[151,1,151,2],[152,1,152,2],[154,0,167,0],[154,1,154,2],[155,1,155,2],[156,1,156,2],[157,1,157,2],[139,0,152,0],[139,1,139,2],[140,1,140,2],[141,1,141,2],[142,1,142,2],[143,1,143,2],[144,1,144,2],[145,1,145,2],[146,1,146,2],[147,1,147,2],[132,1,132,2],[130,1,130,2],[128,1,128,2],[126,1,126,2],[137,1,137,2],[135,1,135,2],[133,1,133,2],[131,1,131,2],[129,1,129,2],[127,1,127,2],[124,0,137,0],[111,1,111,2],[112,1,112,2],[113,1,113,2],[114,1,114,2],[115,1,115,2],[116,1,116,2],[103,1,103,2],[104,1,104,2],[105,1,105,2],[107,0,116,0],[107,1,107,2],[108,1,108,2],[109,1,109,2],[110,1,110,2],[96,0,105,0],[96,1,96,2],[97,1,97,2],[98,1,98,2],[99,1,99,2],[125,1,125,2],[124,1,124,2],[136,1,136,2],[134,1,134,2],[100,1,100,2],[101,1,101,2],[102,1,102,2],[89,1,89,2],[90,1,90,2],[91,1,91,2],[92,1,92,2],[93,1,93,2],[94,1,94,2],[81,1,81,2],[82,1,82,2],[83,1,83,2],[85,0,94,0],[85,1,85,2],[86,1,86,2],[87,1,87,2],[88,1,88,2],[74,0,83,0],[74,1,74,2],[75,1,75,2],[76,1,76,2],[77,1,77,2],[78,1,78,2],[79,1,79,2],[80,1,80,2],[68,1,68,2],[69,1,69,2],[70,1,70,2],[71,1,71,2],[72,1,72,2],[59,1,59,2],[60,1,60,2],[61,1,61,2],[63,1,63,2],[64,1,64,2],[65,1,65,2],[66,1,66,2],[30,0,39,0],[30,1,30,2],[31,1,31,2],[32,1,32,2],[33,1,33,2],[34,1,34,2],[35,1,35,2],[36,1,36,2],[67,1,67,2],[121,0,121,2],[41,0,50,0],[45,1,45,2],[46,1,46,2],[47,1,47,2],[48,1,48,2],[49,1,49,2],[50,1,50,2],[37,1,37,2],[38,1,38,2],[39,1,39,2],[41,1,41,2],[42,1,42,2],[43,1,43,2],[44,1,44,2],[63,0,72,0],[52,0,61,0],[52,1,52,2],[53,1,53,2],[54,1,54,2],[55,1,55,2],[56,1,56,2],[57,1,57,2],[58,1,58,2],[8,0,17,0],[13,1,13,2],[14,1,14,2],[15,1,15,2],[16,1,16,2],[17,1,17,2],[8,1,8,2],[9,1,9,2],[10,1,10,2],[11,1,11,2],[12,1,12,2],[27,1,27,2],[28,1,28,2],[19,0,28,0],[19,1,19,2],[20,1,20,2],[21,1,21,2],[22,1,22,2],[23,1,23,2],[24,1,24,2],[25,1,25,2],[26,1,26,2]]}
["6. EQUIPMENT",null,null,null,null,null,null,null,null,null,0]
[null,null,null,null,null,null,null,null,null,null,1]
[null,null,null,null,null,null,null,null,null,null,2]
["The cost of depreciation",null,null,null,null,null,null,null,null,null,3]
[null,null,null,null,null,null,null,null,null,null,4]
["If you claim depreciation costs of new and/or used equipment, please fill in the table for each type of equipment. ",null,null,null,"If you claim depreciation costs of new and/or used equipment, it is mandatory to fill in the field below.",null,null,null,null,null,5]
[null,null,null,null,null,null,null,null,null,null,6]
[null,"Additional tables",9,null,"Select the number of additional tables from the list.",null,null,null,null,null,7]
[1,"a) Type and description of the new or used equipment",null,null,"Max 500 characters.",null,null,null,null,null,8]
[null,null,null,null,null,null,null,null,null,null,9]
[null,"b) Cost estimate of the depreciation"]
[]
[null,"c) The owner (s) of the equipment"]
[null,null,null,null,"Max 500 characters."]
[null,"d) The justification of claim of depreciation costs"]
[null,null,null,null,"In the justification please define how depreciation corresponds to the duration of the project and the actual rate of use for the purposes of the project."]
[null,"e) A brief description of the technical/technological characteristics and the planned amounts of new or used equipment"]
[null,null,null,null,"Max 1000 characters."]
[]
[2,"a) Type and description of the new or used equipment",null,null,"Max 500 characters."]
[]
[null,"b) Cost estimate of the depreciation"]
[]
[null,"c) The owner (s) of the equipment"]
[null,null,null,null,"Max 500 characters."]
[null,"d) The justification of claim of depreciation costs"]
[null,null,null,null,"In the justification please define how depreciation corresponds to the duration of the project and the actual rate of use for the purposes of the project."]
[null,"e) A brief description of the technical/technological characteristics and the planned amounts of new or used equipment",null,null,"Max 1000 characters."]
[]
[]
[3,"a) Type and description of the new or used equipment",null,null,"Max 500 characters."]
[]
[null,"b) Cost estimate of the depreciation"]
[]
[null,"c) The owner (s) of the equipment"]
[null,null,null,null,"Max 500 characters."]
[null,"d) The justification of claim of depreciation costs"]
[null,null,null,null,"In the justification please define how depreciation corresponds to the duration of the project and the actual rate of use for the purposes of the project."]
[null,"e) A brief description of the technical/technological characteristics and the planned amounts of new or used equipment",null,null,"Max 1000 characters."]
[]
[]
[4,"a) Type and description of the new or used equipment",null,null,"Max 500 characters."]
[]
[null,"b) Cost estimate of the depreciation"]
[]
[null,"c) The owner (s) of the equipment"]
[null,null,null,null,"Max 500 characters."]
[null,"d) The justification of claim of depreciation costs"]
[null,null,null,null,"In the justification please define how depreciation corresponds to the duration of the project and the actual rate of use for the purposes of the project."]
[null,"e) A brief description of the technical/technological characteristics and the planned amounts of new or used equipment",null,null,"Max 1000 characters."]
[]
[]
[5,"a) Type and description of the new or used equipment",null,null,"Max 500 characters."]
[]
[null,"b) Cost estimate of the depreciation"]
[]
[null,"c) The owner (s) of the equipment"]
[null,null,null,null,"Max 500 characters."]
[null,"d) The justification of claim of depreciation costs"]
[null,null,null,null,"In the justification please define how depreciation corresponds to the duration of the project and the actual rate of use for the purposes of the project."]
[null,"e) A brief description of the technical/technological characteristics and the planned amounts of new or used equipment",null,null,"Max 1000 characters."]
[]
[]
[6,"a) Type and description of the new or used equipment",null,null,"Max 500 characters."]
[]
[null,"b) Cost estimate of the depreciation"]
[]
[null,"c) The owner (s) of the equipment"]
[null,null,null,null,"Max 500 characters."]
[null,"d) The justification of claim of depreciation costs"]
[null,null,null,null,"In the justification please define how depreciation corresponds to the duration of the project and the actual rate of use for the purposes of the project."]
[null,"e) A brief description of the technical/technological characteristics and the planned amounts of new or used equipment",null,null,"Max 1000 characters."]
[]
[]
[7,"a) Type and description of the new or used equipment",null,null,"Max 500 characters."]
[]
[null,"b) Cost estimate of the depreciation"]
[]
[null,"c) The owner (s) of the equipment"]
[null,null,null,null,"Max 500 characters."]
[null,"d) The justification of claim of depreciation costs"]
[null,null,null,null,"In the justification please define how depreciation corresponds to the duration of the project and the actual rate of use for the purposes of the project."]
[null,"e) A brief description of the technical/technological characteristics and the planned amounts of new or used equipment",null,null,"Max 1000 characters."]
[]
[]
[8,"a) Type and description of the new or used equipment",null,null,"Max 500 characters."]
[]
[null,"b) Cost estimate of the depreciation"]
[]
[null,"c) The owner (s) of the equipment"]
[null,null,null,null,"Max 500 characters."]
[null,"d) The justification of claim of depreciation costs"]
[null,null,null,null,"In the justification please define how depreciation corresponds to the duration of the project and the actual rate of use for the purposes of the project."]
[null,"e) A brief description of the technical/technological characteristics and the planned amounts of new or used equipment",null,null,"Max 1000 characters."]
[]
[]
[9,"a) Type and description of the new or used equipment",null,null,"Max 500 characters."]
[]
[null,"b) Cost estimate of the depreciation"]
[]
[null,"c) The owner (s) of the equipment"]
[null,null,null,null,"Max 500 characters."]
[null,"d) The justification of claim of depreciation costs"]
[null,null,null,null,"In the justification please define how depreciation corresponds to the duration of the project and the actual rate of use for the purposes of the project."]
[null,"e) A brief description of the technical/technological characteristics and the planned amounts of new or used equipment",null,null,"Max 1000 characters."]
[]
[]
[10,"a) Type and description of the new or used equipment",null,null,"Max 500 characters."]
[]
[null,"b) Cost estimate of the depreciation"]
[]
[null,"c) The owner (s) of the equipment"]
[null,null,null,null,"Max 500 characters."]
[null,"d) The justification of claim of depreciation costs"]
[null,null,null,null,"In the justification please define how depreciation corresponds to the duration of the project and the actual rate of use for the purposes of the project."]
[null,"e) A brief description of the technical/technological characteristics and the planned amounts of new or used equipment",null,null,"Max 1000 characters."]
[]
[]
[]
["Purchase of new equipment for which the reimbursement of the entire purchase price is claimed within the project"]
[]
["If you are planning to purchase new equipment, for which you will claim reimbursement of the purchase price within the project, fill in the table for each type of equipment, provide the requested information. ",null,null,null,"If you are planning to purchase new equipment, for which you will claim reimbursement of the purchase price within the project, it is mandatory to fill in the field below."]
[]
[null,"Additional number of tables",9,null,"Select the number of additional tables from the list."]
[1,"a) Type, description and planned quantities of the new equipment"]
[null,null,null,null,"Max 500 characters."]
[null,"b) Assessment of the costs of purchasing new equipment: "]
[]
[null,"c) Estimation of the cost of maintenance and insurance of the new equipment in the duration of the project"]
[]
[null,"d) Justification of purchasing new equipment"]
[null,null,null,null,"In the justification of the purchase please indicate why it is an integral and necessary part of the equipment for the implementation of the project and why it is essential for the achievement of the objectives of the project."]
[null,"e) Manner of ensuring meeting the specific conditions pertaining to the purchase of new equipment after the approval of the final project report in the five-year period"]
[null,null,null,null,"Max 1000 characters."]
[null,"f) Owner (s) of the new equipment after purchase"]
[null,null,null,null,"Max 500 characters."]
[null,"g) A brief description of the technical/technological characteristics"]
[null,null,null,null,"Max 1000 characters."]
[]
[2,"a) Type, description and planned quantities of the new equipment"]
[null,null,null,null,"Max 500 characters."]
[null,"b) Assessment of the costs of purchasing new equipment: "]
[]
[null,"c) Estimation of the cost of maintenance and insurance of the new equipment in the duration of the project"]
[]
[null,"d) Justification of purchasing new equipment"]
[null,null,null,null,"In the justification of the purchase please indicate why it is an integral and necessary part of the equipment for the implementation of the project and why it is essential for the achievement of the objectives of the project."]
[null,"e) Manner of ensuring meeting the specific conditions pertaining to the purchase of new equipment after the approval of the final project report in the five-year period"]
[null,null,null,null,"Max 1000 characters."]
[null,"f) Owner (s) of the new equipment after purchase"]
[null,null,null,null,"Max 500 characters."]
[null,"g) A brief description of the technical/technological characteristics"]
[null,null,null,null,"Max 1000 characters."]
[]
[3,"a) Type, description and planned quantities of the new equipment"]
[null,null,null,null,"Max 500 characters."]
[null,"b) Assessment of the costs of purchasing new equipment: "]
[]
[null,"c) Estimation of the cost of maintenance and insurance of the new equipment in the duration of the project"]
[]
[null,"d) Justification of purchasing new equipment"]
[null,null,null,null,"In the justification of the purchase please indicate why it is an integral and necessary part of the equipment for the implementation of the project and why it is essential for the achievement of the objectives of the project."]
[null,"e) Manner of ensuring meeting the specific conditions pertaining to the purchase of new equipment after the approval of the final project report in the five-year period"]
[null,null,null,null,"Max 1000 characters."]
[null,"f) Owner (s) of the new equipment after purchase"]
[null,null,null,null,"Max 500 characters."]
[null,"g) A brief description of the technical/technological characteristics"]
[null,null,null,null,"Max 1000 characters."]
[]
[4,"a) Type, description and planned quantities of the new equipment"]
[null,null,null,null,"Max 500 characters."]
[null,"b) Assessment of the costs of purchasing new equipment: "]
[]
[null,"c) Estimation of the cost of maintenance and insurance of the new equipment in the duration of the project"]
[]
[null,"d) Justification of purchasing new equipment"]
[null,null,null,null,"In the justification of the purchase please indicate why it is an integral and necessary part of the equipment for the implementation of the project and why it is essential for the achievement of the objectives of the project."]
[null,"e) Manner of ensuring meeting the specific conditions pertaining to the purchase of new equipment after the approval of the final project report in the five-year period"]
[null,null,null,null,"Max 1000 characters."]
[null,"f) Owner (s) of the new equipment after purchase"]
[null,null,null,null,"Max 500 characters."]
[null,"g) A brief description of the technical/technological characteristics"]
[null,null,null,null,"Max 1000 characters."]
[]
[5,"a) Type, description and planned quantities of the new equipment"]
[null,null,null,null,"Max 500 characters."]
[null,"b) Assessment of the costs of purchasing new equipment: "]
[]
[null,"c) Estimation of the cost of maintenance and insurance of the new equipment in the duration of the project"]
[]
[null,"d) Justification of purchasing new equipment"]
[null,null,null,null,"In the justification of the purchase please indicate why it is an integral and necessary part of the equipment for the implementation of the project and why it is essential for the achievement of the objectives of the project."]
[null,"e) Manner of ensuring meeting the specific conditions pertaining to the purchase of new equipment after the approval of the final project report in the five-year period"]
[null,null,null,null,"Max 1000 characters."]
[null,"f) Owner (s) of the new equipment after purchase"]
[null,null,null,null,"Max 500 characters."]
[null,"g) A brief description of the technical/technological characteristics"]
[null,null,null,null,"Max 1000 characters."]
[]
[6,"a) Type, description and planned quantities of the new equipment"]
[null,null,null,null,"Max 500 characters."]
[null,"b) Assessment of the costs of purchasing new equipment: "]
[]
[null,"c) Estimation of the cost of maintenance and insurance of the new equipment in the duration of the project"]
[]
[null,"d) Justification of purchasing new equipment"]
[null,null,null,null,"In the justification of the purchase please indicate why it is an integral and necessary part of the equipment for the implementation of the project and why it is essential for the achievement of the objectives of the project."]
[null,"e) Manner of ensuring meeting the specific conditions pertaining to the purchase of new equipment after the approval of the final project report in the five-year period"]
[null,null,null,null,"Max 1000 characters."]
[null,"f) Owner (s) of the new equipment after purchase"]
[null,null,null,null,"Max 500 characters."]
[null,"g) A brief description of the technical/technological characteristics"]
[null,null,null,null,"Max 1000 characters."]
[]
[7,"a) Type, description and planned quantities of the new equipment"]
[null,null,null,null,"Max 500 characters."]
[null,"b) Assessment of the costs of purchasing new equipment: "]
[]
[null,"c) Estimation of the cost of maintenance and insurance of the new equipment in the duration of the project"]
[]
[null,"d) Justification of purchasing new equipment"]
[null,null,null,null,"In the justification of the purchase please indicate why it is an integral and necessary part of the equipment for the implementation of the project and why it is essential for the achievement of the objectives of the project."]
[null,"e) Manner of ensuring meeting the specific conditions pertaining to the purchase of new equipment after the approval of the final project report in the five-year period"]
[null,null,null,null,"Max 1000 characters."]
[null,"f) Owner (s) of the new equipment after purchase"]
[null,null,null,null,"Max 500 characters."]
[null,"g) A brief description of the technical/technological characteristics"]
[null,null,null,null,"Max 1000 characters."]
[]
[8,"a) Type, description and planned quantities of the new equipment"]
[null,null,null,null,"Max 500 characters."]
[null,"b) Assessment of the costs of purchasing new equipment: "]
[]
[null,"c) Estimation of the cost of maintenance and insurance of the new equipment in the duration of the project"]
[]
[null,"d) Justification of purchasing new equipment"]
[null,null,null,null,"In the justification of the purchase please indicate why it is an integral and necessary part of the equipment for the implementation of the project and why it is essential for the achievement of the objectives of the project."]
[null,"e) Manner of ensuring meeting the specific conditions pertaining to the purchase of new equipment after the approval of the final project report in the five-year period"]
[null,null,null,null,"Max 1000 characters."]
[null,"f) Owner (s) of the new equipment after purchase"]
[null,null,null,null,"Max 500 characters."]
[null,"g) A brief description of the technical/technological characteristics"]
[null,null,null,null,"Max 1000 characters."]
[]
[9,"a) Type, description and planned quantities of the new equipment"]
[null,null,null,null,"Max 500 characters."]
[null,"b) Assessment of the costs of purchasing new equipment: "]
[]
[null,"c) Estimation of the cost of maintenance and insurance of the new equipment in the duration of the project"]
[]
[null,"d) Justification of purchasing new equipment"]
[null,null,null,null,"In the justification of the purchase please indicate why it is an integral and necessary part of the equipment for the implementation of the project and why it is essential for the achievement of the objectives of the project."]
[null,"e) Manner of ensuring meeting the specific conditions pertaining to the purchase of new equipment after the approval of the final project report in the five-year period"]
[null,null,null,null,"Max 1000 characters."]
[null,"f) Owner (s) of the new equipment after purchase"]
[null,null,null,null,"Max 500 characters."]
[null,"g) A brief description of the technical/technological characteristics"]
[null,null,null,null,"Max 1000 characters."]
[]
[10,"a) Type, description and planned quantities of the new equipment"]
[null,null,null,null,"Max 500 characters."]
[null,"b) Assessment of the costs of purchasing new equipment: "]
[]
[null,"c) Estimation of the cost of maintenance and insurance of the new equipment in the duration of the project"]
[]
[null,"d) Justification of purchasing new equipment"]
[null,null,null,null,"In the justification of the purchase please indicate why it is an integral and necessary part of the equipment for the implementation of the project and why it is essential for the achievement of the objectives of the project."]
[null,"e) Manner of ensuring meeting the specific conditions pertaining to the purchase of new equipment after the approval of the final project report in the five-year period"]
[null,null,null,null,"Max 1000 characters."]
[null,"f) Owner (s) of the new equipment after purchase"]
[null,null,null,null,"Max 500 characters."]
[null,"g) A brief description of the technical/technological characteristics"]
[null,null,null,null,"Max 1000 characters."]

{"sheet":"CONSTRUCTION ","index":13,"n_rows":269,"n_cols":16,"rows_kept":269,"cut":false,"hidden":false,"merged":[[250,1,250,5],[251,1,251,5],[252,1,252,5],[237,1,237,5],[223,1,223,5],[224,1,224,5],[225,1,225,5],[226,1,226,5],[6,7,6,13],[263,1,263,5],[266,0,266,5],[267,4,267,5],[268,4,268,5],[267,2,267,3],[268,2,268,3],[268,0,268,1],[267,0,267,1],[254,0,263,0],[254,1,254,5],[255,1,255,5],[256,1,256,5],[257,1,257,5],[258,1,258,5],[259,1,259,5],[260,1,260,5],[261,1,261,5],[262,1,262,5],[249,1,249,5],[243,0,252,0],[243,1,243,5],[244,1,244,5],[245,1,245,5],[246,1,246,5],[227,1,227,5],[228,1,228,5],[229,1,229,5],[230,1,230,5],[232,0,241,0],[232,1,232,5],[233,1,233,5],[234,1,234,5],[235,1,235,5],[236,1,236,5],[247,1,247,5],[248,1,248,5],[238,1,238,5],[239,1,239,5],[240,1,240,5],[241,1,241,5],[221,0,230,0],[221,1,221,5],[222,1,222,5],[210,0,219,0],[210,1,210,5],[211,1,211,5],[212,1,212,5],[213,1,213,5],[214,1,214,5],[215,1,215,5],[216,1,216,5],[217,1,217,5],[218,1,218,5],[219,1,219,5],[197,1,197,5],[199,0,208,0],[199,1,199,5],[200,1,200,5],[201,1,201,5],[202,1,202,5],[203,1,203,5],[204,1,204,5],[205,1,205,5],[206,1,206,5],[188,0,197,0],[188,1,188,5],[189,1,189,5],[190,1,190,5],[191,1,191,5],[192,1,192,5],[193,1,193,5],[194,1,194,5],[195,1,195,5],[196,1,196,5],[207,1,207,5],[208,1,208,5],[183,1,183,5],[184,1,184,5],[185,1,185,5],[186,1,186,5],[171,1,171,5],[172,1,172,5],[173,1,173,5],[174,1,174,5],[175,1,175,5],[177,0,186,0],[177,1,177,5],[178,1,178,5],[179,1,179,5],[180,1,180,5],[162,1,162,5],[163,1,163,5],[164,1,164,5],[166,0,175,0],[166,1,166,5],[167,1,167,5],[168,1,168,5],[169,1,169,5],[170,1,170,5],[155,0,164,0],[155,1,155,5],[156,1,156,5],[157,1,157,5],[158,1,158,5],[159,1,159,5],[160,1,160,5],[161,1,161,5],[181,1,181,5],[182,1,182,5],[143,1,143,5],[144,1,144,5],[145,1,145,5],[154,0,154,5],[133,1,133,5],[134,1,134,5],[135,1,135,5],[136,1,136,5],[139,0,139,5],[123,1,123,5],[125,0,136,0],[125,1,125,5],[126,1,126,5],[127,1,127,5],[128,1,128,5],[129,1,129,5],[130,1,130,5],[131,1,131,5],[132,1,132,5],[112,0,123,0],[114,1,114,5],[115,1,115,5],[116,1,116,5],[117,1,117,5],[118,1,118,5],[119,1,119,5],[120,1,120,5],[121,1,121,5],[122,1,122,5],[112,1,112,5],[113,1,113,5],[97,1,97,5],[99,0,110,0],[99,1,99,5],[100,1,100,5],[101,1,101,5],[102,1,102,5],[103,1,103,5],[104,1,104,5],[105,1,105,5],[106,1,106,5],[86,0,97,0],[91,1,91,5],[92,1,92,5],[93,1,93,5],[94,1,94,5],[95,1,95,5],[96,1,96,5],[107,1,107,5],[108,1,108,5],[109,1,109,5],[110,1,110,5],[81,1,81,5],[82,1,82,5],[83,1,83,5],[84,1,84,5],[86,1,86,5],[87,1,87,5],[88,1,88,5],[89,1,89,5],[90,1,90,5],[57,1,57,5],[58,1,58,5],[60,1,60,5],[61,1,61,5],[62,1,62,5],[63,1,63,5],[64,1,64,5],[71,1,71,5],[73,0,84,0],[73,1,73,5],[74,1,74,5],[75,1,75,5],[76,1,76,5],[77,1,77,5],[78,1,78,5],[79,1,79,5],[80,1,80,5],[60,0,71,0],[65,1,65,5],[66,1,66,5],[67,1,67,5],[68,1,68,5],[69,1,69,5],[70,1,70,5],[34,1,34,5],[35,1,35,5],[36,1,36,5],[37,1,37,5],[38,1,38,5],[45,1,45,5],[47,0,58,0],[47,1,47,5],[48,1,48,5],[49,1,49,5],[50,1,50,5],[51,1,51,5],[52,1,52,5],[53,1,53,5],[54,1,54,5],[34,0,45,0],[39,1,39,5],[40,1,40,5],[41,1,41,5],[42,1,42,5],[43,1,43,5],[44,1,44,5],[55,1,55,5],[56,1,56,5],[14,1,14,5],[16,1,16,5],[18,1,18,5],[9,1,9,5],[11,1,11,5],[29,1,29,5],[30,1,30,5],[31,1,31,5],[32,1,32,5],[6,1,6,4],[4,0,4,5],[142,1,142,5],[151,0,151,5],[153,1,153,4],[0,0,0,5],[21,0,32,0],[21,1,21,5],[22,1,22,5],[23,1,23,5],[24,1,24,5],[25,1,25,5],[26,1,26,5],[27,1,27,5],[28,1,28,5],[13,1,13,5],[15,1,15,5],[17,1,17,5],[19,1,19,5],[7,0,7,5],[8,0,19,0],[8,1,8,5],[10,1,10,5],[12,1,12,5]]}
["7. CONSTRUCTION AND RENOVATION, REAL ESTATE AND LAND",null,null,null,null,null,null,null,null,null,null,null,null,null,null,0]
[null,null,null,null,null,null,null,null,null,null,null,null,null,null,null,1]
["Construction and renovation work",null,null,null,null,null,null,null,null,null,null,null,null,null,null,2]
[null,null,null,null,null,null,null,null,null,null,null,null,null,null,null,3]
["If the project foresees construction and renovation works, fill in the table given below for each of them.",null,null,null,null,null,null,"If the project foresees construction and renovation works, it is mandatory to fill in the field below.",null,null,null,null,null,null,null,4]
[null,null,null,null,null,null,null,null,null,null,null,null,null,null,null,5]
[null,"Number of tables for construction and renovation works: ",null,null,null,1,null,"Select the number of additional tables from the list.",null,null,null,null,null,null,null,6]
["Gradbena dela",null,null,null,null,null,null,null,null,null,null,null,null,null,null,7]
[1,"a) Name of the investment",null,null,null,null,null,null,null,null,null,null,null,null,null,8]
[null,null,null,null,null,null,null,"Max 200 characters.",null,null,null,null,null,null,null,9]
[null,"b) Description of the investment (location, technical information, type of planned work etc.)",null,null,null,null,null,null,null,null,null,null,null,null,null,10]
[null,null,null,null,null,null,null,"Max 2000 characters."]
[null,"c) Investor"]
[]
[null,"d) Owner of the investment"]
[null,null,null,null,null,null,null,"Max 500 characters."]
[null,"e) Assessment of the investment costs by major investment stages or types of work"]
[]
[null,"f) Expected beginning of work"]
[]
[]
[2,"a) Name of the investment"]
[null,null,null,null,null,null,null,"Max 200 characters."]
[null,"b) Description of the investment (location, technical information, type of planned work etc.)"]
[null,null,null,null,null,null,null,"Max 2000 characters."]
[null,"c) Investor"]
[]
[null,"d) Owner of the investment"]
[null,null,null,null,null,null,null,"max. 500 characters"]
[null,"e) Assessment of the investment costs by major investment stages or types of work"]
[]
[null,"f) Expected beginning of work"]
[]
[]
[3,"a) Name of the investment"]
[null,null,null,null,null,null,null,"max. 200 characters"]
[null,"b) Description of the investment (location, technical information, type of planned work etc.)"]
[null,null,null,null,null,null,null,"max. 2000 characters"]
[null,"c) Investor"]
[]
[null,"d) Owner of the investment"]
[null,null,null,null,null,null,null,"max. 500 characters"]
[null,"e) Assessment of the investment costs by major investment stages or types of work"]
[]
[null,"f) Expected beginning of work"]
[]
[]
[4,"a) Name of the investment"]
[null,null,null,null,null,null,null,"max. 200 characters"]
[null,"b) Description of the investment (location, technical information, type of planned work etc.)"]
[null,null,null,null,null,null,null,"max. 2000 characters"]
[null,"c) Investor"]
[]
[null,"d) Owner of the investment"]
[null,null,null,null,null,null,null,"max. 500 characters"]
[null,"e) Assessment of the investment costs by major investment stages or types of work"]
[]
[null,"f) Expected beginning of work"]
[]
[]
[5,"a) Name of the investment"]
[null,null,null,null,null,null,null,"max. 200 characters"]
[null,"b) Description of the investment (location, technical information, type of planned work etc.)"]
[null,null,null,null,null,null,null,"Max 2000 characters."]
[null,"c) Investor"]
[]
[null,"d) Owner of the investment"]
[null,null,null,null,null,null,null,"Max 500 characters."]
[null,"e) Assessment of the investment costs by major investment stages or types of work"]
[null,null,null,null,null,null,null,"Max 500 characters."]
[null,"f) Expected beginning of work"]
[]
[]
[6,"a) Name of the investment"]
[null,null,null,null,null,null,null,"Max 200 characters."]
[null,"b) Description of the investment (location, technical information, type of planned work etc.)"]
[null,null,null,null,null,null,null,"Max. 2000 characters."]
[null,"c) Investor"]
[]
[null,"d) Owner of the investment"]
[null,null,null,null,null,null,null,"Max 500 characters."]
[null,"e) Assessment of the investment costs by major investment stages or types of work"]
[null,null,null,null,null,null,null,"Max 500 characters."]
[null,"f) Expected beginning of work"]
[]
[]
[7,"a) Name of the investment"]
[null,null,null,null,null,null,null,"Max 200 characters."]
[null,"b) Description of the investment (location, technical information, type of planned work etc.)"]
[null,null,null,null,null,null,null,"Max 2000 characters."]
[null,"c) Investor"]
[]
[null,"d) Owner of the investment"]
[null,null,null,null,null,null,null,"Max 500 characters."]
[null,"e) Assessment of the investment costs by major investment stages or types of work"]
[null,null,null,null,null,null,null,"Max 500 characters."]
[null,"f) Expected beginning of work"]
[]
[]
[8,"a) Name of the investment"]
[null,null,null,null,null,null,null,"Max 200 characters."]
[null,"b) Description of the investment (location, technical information, type of planned work etc.)"]
[null,null,null,null,null,null,null,"Max 2000 characters."]
[null,"c) Investor"]
[]
[null,"d) Owner of the investment"]
[null,null,null,null,null,null,null,"Max 500 characters."]
[null,"e) Assessment of the investment costs by major investment stages or types of work"]
[null,null,null,null,null,null,null,"Max 500 characters."]
[null,"f) Expected beginning of work"]
[]
[]
[9,"a) Name of the investment"]
[null,null,null,null,null,null,null,"Max 200 characters."]
[null,"b) Description of the investment (location, technical information, type of planned work etc.)"]
[null,null,null,null,null,null,null,"Max 2000 characters."]
[null,"c) Investor"]
[]
[null,"d) Owner of the investment"]
[null,null,null,null,null,null,null,"Max 500 characters."]
[null,"e) Assessment of the investment costs by major investment stages or types of work"]
[null,null,null,null,null,null,null,"Max 500 characters."]
[null,"f) Expected beginning of work"]
[]
[]
[10,"a) Name of the investment"]
[null,null,null,null,null,null,null,"Max 200 characters."]
[null,"b) Description of the investment (location, technical information, type of planned work etc.)"]
[null,null,null,null,null,null,null,"Max 2000 characters."]
[null,"c) Investor"]
[]
[null,"d) Owner of the investment"]
[null,null,null,null,null,null,null,"Max 500 characters."]
[null,"e) Assessment of the investment costs by major investment stages or types of work"]
[null,null,null,null,null,null,null,"Max 500 characters."]
[null,"f) Expected beginning of work"]
[]
[]
[]
["Specify whether a building permit needs to be obtained for the construction work. If the building permit is not enclosed, explain why and indicate when it will be obtained. If the building permit does not need to be obtained, explain the basis for the construction work. "]
[null,"The building permit needs to be obtained"]
[null,"A valid building permit is enclosed. "]
[null,"A valid building permit is not enclosed. Specify the reason and indicate when it will be obtained: "]
[null,null,null,null,null,null,null,"Max 500 characters."]
[null,"The building permit does not need to be obtained. The construction work will be carried out on the basis of:"]
[null,null,null,null,null,null,null,"Max 500 characters."]
[]
[]
[]
["Purchase of real estate and land"]
[]
["If the project foresees the purchase of real estate and land, fill in the table given below for each of them"]
[]
[null,"Number of tables for purchase of real estate and land.",null,null,null,10,null,"If the project includes the purchase of real estate and land, the fields are mandatory."]
["Nakup nepremičnin in/ali zemljišč",null,null,null,null,null,null,"VSA POLJA POGOJNO OBVEZNA, v kolikor bo nakup nepremičnin/zemljišč"]
[1,"a) Name and description of the investment"]
[null,null,null,null,null,null,null,"Max 750 characters."]
[null,"b) Investor"]
[]
[null,"c) Owner of the investment"]
[null,null,null,null,null,null,null,"Max 500 characters."]
[null,"d) Justification of the purchase"]
[null,null,null,null,null,null,null,"Max 1000 characters."]
[null,"e) Assessment of the purchase cost:"]
[]
[]
[2,"a) Name and description of the investment"]
[null,null,null,null,null,null,null,"Max 750 characters."]
[null,"b) Investor"]
[]
[null,"c) Owner of the investment"]
[null,null,null,null,null,null,null,"Max 500 characters."]
[null,"d) Justification of the purchase"]
[null,null,null,null,null,null,null,"Max 1000 characters."]
[null,"e) Assessment of the purchase cost:"]
[]
[]
[3,"a) Name and description of the investment"]
[null,null,null,null,null,null,null,"Max 750 characters."]
[null,"b) Investor"]
[]
[null,"c) Owner of the investment"]
[null,null,null,null,null,null,null,"Max 500 characters."]
[null,"d) Justification of the purchase"]
[null,null,null,null,null,null,null,"Max 1000 characters."]
[null,"e) Assessment of the purchase cost:"]
[]
[]
[4,"a) Name and description of the investment"]
[null,null,null,null,null,null,null,"Max 750 characters."]
[null,"b) Investor"]
[]
[null,"c) Owner of the investment"]
[null,null,null,null,null,null,null,"Max 500 characters."]
[null,"d) Justification of the purchase"]
[null,null,null,null,null,null,null,"Max 1000 characters."]
[null,"e) Assessment of the purchase cost:"]
[]
[]
[5,"a) Name and description of the investment"]
[null,null,null,null,null,null,null,"Max 750 characters."]
[null,"b) Investor"]
[]
[null,"c) Owner of the investment"]
[null,null,null,null,null,null,null,"Max 500 characters."]
[null,"d) Justification of the purchase"]
[null,null,null,null,null,null,null,"Max 1000 characters."]
[null,"e) Assessment of the purchase cost:"]
[]
[]
[6,"a) Name and description of the investment"]
[null,null,null,null,null,null,null,"Max 750 characters."]
[null,"b) Investor"]
[]
[null,"c) Owner of the investment"]
[null,null,null,null,null,null,null,"Max 500 characters."]
[null,"d) Justification of the purchase"]
[null,null,null,null,null,null,null,"Max 1000 characters."]
[null,"e) Assessment of the purchase cost:"]
[]
[]
[7,"a) Name and description of the investment"]
[null,null,null,null,null,null,null,"Max. 750 characters."]
[null,"b) Investor"]
[]
[null,"c) Owner of the investment"]
[null,null,null,null,null,null,null,"Max 500 characters."]
[null,"d) Justification of the purchase"]
[null,null,null,null,null,null,null,"Max 1000 characters."]
[null,"e) Assessment of the purchase cost:"]
[]
[]
[8,"a) Name and description of the investment"]
[null,null,null,null,null,null,null,"Max 750 characters."]
[null,"b) Investor"]
[]
[null,"c) Owner of the investment"]
[null,null,null,null,null,null,null,"Max 500 characters."]
[null,"d) Justification of the purchase"]
[null,null,null,null,null,null,null,"Max 1000 characters."]
[null,"e) Assessment of the purchase cost:"]
[]
[]
[9,"a) Name and description of the investment"]
[null,null,null,null,null,null,null,"Max 750 characters."]
[null,"b) Investor"]
[]
[null,"c) Owner of the investment"]
[null,null,null,null,null,null,null,"Max 500 characters."]
[null,"d) Justification of the purchase"]
[null,null,null,null,null,null,null,"Max 1000 characters."]
[null,"e) Assessment of the purchase cost:"]
[]
[]
[10,"a) Name and description of the investment"]
[null,null,null,null,null,null,null,"Max 750 characters."]
[null,"b) Investor"]
[]
[null,"c) Owner of the investment"]
[null,null,null,null,null,null,null,"Max 500 characters."]
[null,"d) Justification of the purchase"]
[null,null,null,null,null,null,null,"Max 1000 characters."]
[null,"e) Assessment of the purchase cost:"]
[]
[]
[]
["The table given below provides the automatic calculation of the assessment of the total costs of the purchase of property and/or land and costs in relation to the total project eligible costs envisaged in the financial plan. The costs of the purchase of property and/or land may represent a maximum of 10% of the total project eligible costs. "]
["V EUR",null,"Amount",null,"Share of the total eligible costs"]
["Assessment of the total costs for the purchase of property and land",null,{"$f":"B264+B253+B242+B231+B220+B209+B198+B187+B176+B165","v":0},null,{"$f":"C269/'FINANCIAL PLAN'!R30","v":{"$error":"#DIV/0!"}}]

{"sheet":"INVESTMENT DOCUMENTATION","index":14,"n_rows":9,"n_cols":2,"rows_kept":9,"cut":false,"hidden":false,"merged":[[0,0,0,6],[3,0,3,6],[9,1,9,6],[7,1,7,5]]}
["8. DATA ON THE INVESTMENT DOCUMENTATION"]
[]
[]
["If the projects include the investment in new equipment with the enforcement of reimbursement of the purchase price, construction and rehabilitation work or the purchase of property and land, indicate the prepared data on the drafted investment documentation"]
[]
[null,"Prepared DIIP (investment project identification document)"]
[null,"Prepared DIIP (Investment project identification document), IP (investment programme)"]
[null,"Prepared DIIP (investment project identification document), PIZ (pre-investment study) and IP (investment programme)"]
[null,"Other:"]

{"sheet":"FINANCIAL PLAN","index":15,"n_rows":122,"n_cols":19,"rows_kept":122,"cut":false,"hidden":false,"merged":[[24,6,24,7],[25,6,25,7],[26,6,26,7],[27,6,27,7],[28,6,28,7],[29,6,29,7],[62,1,63,1],[62,2,63,2],[62,3,63,3],[62,4,63,4],[62,7,63,7],[29,0,29,3],[62,8,63,8],[62,5,62,6],[33,0,33,10],[35,0,35,7],[39,0,39,7],[40,0,40,7],[41,0,41,7],[40,8,40,9],[44,0,44,3],[45,0,45,3],[44,4,44,5],[45,4,45,5],[36,0,36,10],[37,0,37,10],[29,8,29,10],[16,4,16,5],[16,6,16,7],[17,6,17,7],[24,4,24,5],[25,4,25,5],[26,4,26,5],[27,4,27,5],[28,4,28,5],[16,8,16,10],[17,8,17,10],[20,0,20,10],[22,0,22,10],[24,0,24,3],[25,0,25,3],[26,0,26,3],[27,0,27,3],[28,0,28,3],[24,8,24,10],[25,8,25,10],[26,8,26,10],[27,8,27,10],[28,8,28,10],[29,4,29,5],[4,0,4,10],[5,0,5,10],[6,0,6,10],[10,0,10,10],[17,0,17,3],[12,0,12,3],[13,0,13,3],[14,0,14,3],[15,0,15,3],[16,0,16,3],[12,8,12,10],[13,8,13,10],[14,8,14,10],[15,8,15,10],[12,4,12,5],[13,4,13,5],[14,4,14,5],[15,4,15,5],[17,4,17,5],[12,6,12,7],[13,6,13,7],[14,6,14,7],[15,6,15,7],[83,7,84,7],[83,8,84,8],[83,9,84,9],[83,10,84,10],[111,0,111,10],[83,1,84,1],[83,2,84,2],[83,3,84,3],[83,4,84,4],[83,5,83,6],[119,0,119,2],[120,0,120,2],[121,0,121,2],[114,3,114,5],[115,3,115,5],[116,3,116,5],[117,3,117,5],[118,3,118,5],[119,3,119,5],[120,3,120,5],[121,3,121,5],[114,0,114,2],[115,0,115,2],[116,0,116,2],[117,0,117,2],[118,0,118,2],[122,6,122,8],[122,9,122,10],[122,3,122,5],[119,6,119,8],[120,6,120,8],[121,6,121,8],[114,9,114,10],[115,9,115,10],[116,9,116,10],[117,9,117,10],[118,9,118,10],[119,9,119,10],[120,9,120,10],[121,9,121,10],[114,6,114,8],[115,6,115,8],[116,6,116,8],[117,6,117,8],[118,6,118,8]]}
["9. FINANCIAL PLAN"]
[]
["Sources of financing"]
[]
["Za projekte na področju Biotska raznovrstnost in ekosistemske storitve višina nepovratnih sredstev ni manjša od 500.000 € in ne presega 700.000 €."]
["Za projekte na področju Naravna dediščina višina nepovratnih sredstev ni manjša od 250.000 € in ne presega 1.000.000 €."]
["Justification of the project and outline of the issue",null,null,null,null,null,null,null,null,null,null,null,null,"Verjetno kulturna?"]
[]
["Sources of financing – the applicant is an NGO"]
[]
["If the applicant is an NGO, fill in the table given below regarding the sources of financing of the total eligible project costs. The project eligible costs can be co-financed from the grant in the amount of  up to 90% while the NGO, acting as the Project Promoter, should provide the remaining 10% through own contribution.    "]
[]
["Sources of funding",null,null,null,"Amount",null,"Share"]
["1. OWN CONTRIBUTION",null,null,null,null,null,{"$f":"E14/$E$18","v":{"$error":"#DIV/0!"}}]
["2. CO-FINANCING GRANT OF THE PROJECT  ",null,null,null,null,null,{"$f":"E15/$E$18","v":{"$error":"#DIV/0!"}},null,"Share of the co-financing grant"]
["2.1 Earmarked funds EEA",null,null,null,{"$f":"0.85*E15","v":0},null,{"$f":"E16/$E$18","v":{"$error":"#DIV/0!"}},null,{"$f":"E16/E15","v":{"$error":"#DIV/0!"}}]
["2.2. National funding",null,null,null,{"$f":"0.15*E15","v":0},null,{"$error":"#DIV/0!"},null,{"$f":"E17/E15","v":{"$error":"#DIV/0!"}}]
["3. TOTAL ELIGIBLE COSTS OF THE PROJECT  ",null,null,null,null,null,{"$error":"#DIV/0!"}]
[]
[]
["Sources of financing – other applicants"]
[]
["If the applicant is not an NGO, fill in the table given below regarding the sources of financing of the total project eligible costs. The project eligible costs can be co-financed from the grant in the amount of up to 95% while the Project Promoter should provide the remaining 5% through own contribution. "]
[null,null,null,null,null,null,null,null,null,null,null,null,null,null,null,null,null,"Izbor NVO ne nvo skupnih"]
["Sources of funding",null,null,null,"Amount",null,"Share",null,null,null,null,null,null,null,null,null,null,null,"delež"]
["1. Lastna udeležba",null,null,null,null,null,{"$f":"E26/$E$30","v":{"$error":"#DIV/0!"}},null,null,null,null,null,null,null,null,null,"Lastna",{"$f":"IF(ISNUMBER(E14),E14,E26)","v":0},{"$f":"IF(ISNUMBER(E14),G14,G26)","v":{"$error":"#DIV/0!"}}]
["2. CO-FINANCING GRANT OF THE PROJECT  ",null,null,null,null,null,{"$f":"E27/$E$30","v":{"$error":"#DIV/0!"}},null,"Share of the co-financing grant",null,null,null,null,null,null,null,"nepovr",{"$f":"IF(ISNUMBER(E15),E15,E27)","v":0},{"$f":"IF(ISNUMBER(E14),G15,G27)","v":{"$error":"#DIV/0!"}}]
["2.1 Earmarked funds EEA",null,null,null,{"$f":"0.85*E27","v":0},null,{"$error":"#DIV/0!"},null,{"$f":"E28/E27","v":{"$error":"#DIV/0!"}},null,null,null,null,null,null,null,null,0]
["2.2. National funding",null,null,null,{"$f":"0.15 *E27","v":0},null,{"$error":"#DIV/0!"},null,{"$f":"E29/E27","v":{"$error":"#DIV/0!"}},null,null,null,null,null,null,null,null,0]
["3. TOTAL ELIGIBLE COSTS OF THE PROJECT  ",null,null,null,null,null,{"$error":"#DIV/0!"},null,null,null,null,null,null,null,null,null,"skupni",0]
[]
[]
[]
[" Revenue and information for the investment documentation"]
[]
["Will the project generate revenue"]
["If the project generates revenue, specify the type of revenue and the activities with which the project will generate revenue."]
[null,null,null,null,null,null,null,null,null,null,null,null,"Max 750 characters."]
[]
["If the project generates revenue, specify:"]
["YES, the project generated discounted net revenue in the amount of ",null,null,null,null,null,null,null,null,null,null,null,"Fill in the amount."]
["NO, the project does not generate net revenue."]
[]
[]
["Calculated financing gap",null,null,null,null,null,null,null,null,null,null,null,"Copy the percentage from the tab Financing gap."]
["Calculated corresponding amount (decision amount): ",null,null,null,null,null,null,null,null,null,null,null,"Copy the amount from the tab Financing gap."]
[]
[]
[]
[]
[]
[]
[]
[]
[]
[]
["Foreseen total eligible project costs by cost categories and working sets."]
[]
["Fill in the table given below by cost categories and working sets. "]
[]
["Method of the indirect administrative costs calculation",null,null,null,null,null,null,null,null,null,null,null,"Method A means the calculation of the indirect administrative costs by the key, method B by the flat rate. See the Chapter 2.3.3.5.  Applicants Manual - Set B."]
[]
["Cost category","Personnel costs","Costs of outsourcing","Equipment costs","Costs of construction and the purchase of property and/or land","Administrative costs",null,"TOTAL ELIGIBLE COSTS ","Share of the total eligible costs of the project",null,null,null,"In the cost of equipment consider the potential costs of purchase, depreciation, maintenance, insurance and other."]
["Working set",null,null,null,null,"Direct costs","Indirect costs"]
["WS 1",null,null,null,null,null,null,{"$f":"SUM(B65:G65)","v":0},{"$f":"H65/$R$30","v":{"$error":"#DIV/0!"}}]
["WS 2",null,null,null,null,null,null,{"$f":"SUM(B66:G66)","v":0},{"$f":"H66/$R$30","v":{"$error":"#DIV/0!"}}]
["WS 3",null,null,null,null,null,null,0,{"$error":"#DIV/0!"}]
["WS 4",null,null,null,null,null,null,0,{"$error":"#DIV/0!"}]
["WS 5",null,null,null,null,null,null,0,{"$error":"#DIV/0!"}]
["WS 6",null,null,null,null,null,null,0,{"$error":"#DIV/0!"}]
["TOTAL ELIGIBLE COSTS ",{"$f":"SUM(B65:B70)","v":0},0,0,0,0,0,{"$f":"SUM(B71:G71)","v":0},null,null,null,null,"The total sum of the eligible costs must be equal to the amount of total eligible project costs from the table Sources of financing. "]
["Share of the total eligible costs of the project",{"$f":"B71/$R$30","v":{"$error":"#DIV/0!"}},{"$f":"C71/$R$30","v":{"$error":"#DIV/0!"}},{"$error":"#DIV/0!"},{"$error":"#DIV/0!"},{"$error":"#DIV/0!"},{"$error":"#DIV/0!"}]
[]
[]
[]
[]
[]
["Foreseen total project eligible costs by cost categories and partners"]
[]
["Fill in the table given below by cost categories and partners. "]
[]
[]
[]
["Cost category","Personnel costs","Costs of outsourcing","Equipment costs","Costs of construction and the purchase of property and/or land","Administrative costs",null,"TOTAL ELIGIBLE COSTS ","Share of the total eligible costs of the project","CO-FINANCING","OWN CONTRIBUTION"]
["Partner",null,null,null,null,"Direct costs","Indirect costs"]
["Applicant",null,null,null,null,null,null,{"$f":"SUM(B86:G86)","v":0},{"$f":"H86/$R$30","v":{"$error":"#DIV/0!"}}]
["Partner 1",null,null,null,null,null,null,{"$f":"SUM(B87:G87)","v":0},{"$f":"H87/$R$30","v":{"$error":"#DIV/0!"}}]
["Partner 2",null,null,null,null,null,null,0,{"$error":"#DIV/0!"}]
["Partner 3",null,null,null,null,null,null,0,{"$error":"#DIV/0!"}]
["Partner 4",null,null,null,null,null,null,0,{"$error":"#DIV/0!"}]
["Partner 5",null,null,null,null,null,null,0,{"$error":"#DIV/0!"}]
["Partner 6",null,null,null,null,null,null,0,{"$error":"#DIV/0!"}]
["Partner 7",null,null,null,null,null,null,0,{"$error":"#DIV/0!"}]
["Partner 8",null,null,null,null,null,null,0,{"$error":"#DIV/0!"}]
["Partner 9",null,null,null,null,null,null,0,{"$error":"#DIV/0!"}]
["Partner 10",null,null,null,null,null,null,0,{"$error":"#DIV/0!"}]
["Partner 11",null,null,null,null,null,null,0,{"$error":"#DIV/0!"}]
["Partner 12",null,null,null,null,null,null,0,{"$error":"#DIV/0!"}]
["Partner 13",null,null,null,null,null,null,0,{"$error":"#DIV/0!"}]
["Partner 14",null,null,null,null,null,null,0,{"$error":"#DIV/0!"}]
["Partner 15",null,null,null,null,null,null,0,{"$error":"#DIV/0!"}]
["Partner 16",null,null,null,null,null,null,0,{"$error":"#DIV/0!"}]
["TOTAL ELIGIBLE COSTS ",{"$f":"SUM(B86:B102)","v":0},{"$f":"SUM(C86:C102)","v":0},0,0,0,0,{"$f":"SUM(B103:G103)","v":0},{"$f":"SUM(I86:I102)","v":{"$error":"#DIV/0!"}},{"$f":"SUM(J86:J102)","v":0},{"$f":"SUM(K86:K102)","v":0}]
["Share of the total eligible costs of the project",{"$f":"B103/$R$30","v":{"$error":"#DIV/0!"}},{"$f":"C103/$R$30","v":{"$error":"#DIV/0!"}},{"$error":"#DIV/0!"},{"$error":"#DIV/0!"},{"$error":"#DIV/0!"},{"$error":"#DIV/0!"},null,null,null,null,null,"The total sum of the eligible costs must be equal to the amount of total eligible project costs from the table Sources of financing. ",{"$f":"IF(J103=R27,\"\",\"Znesek se mora ujemati z nečim!\")","v":""},{"$f":"IF(K103=R27,\"\",\"Znesek se mora ujemati z nečim!\")","v":""}]
[]
[]
[]
[]
[]
["Indicative timeframe of spending"]
[]
["For each period specify the total eligible costs of the project; the amount of the grant and the amount of own contribution is calculated automatically.  "]
[]
[]
["Period",null,null,"Total eligible costs incurred in the given period ",null,null,"Amount of the grant",null,null,"Amount of own contribution"]
["1.5.2014 to 31.8.2014",null,null,null,null,null,{"$f":"D116*$S$26","v":{"$error":"#DIV/0!"}},null,null,{"$f":"D116*$S$27","v":{"$error":"#DIV/0!"}}]
["1.9.2014 to 31.12.2014",null,null,null,null,null,{"$f":"D117*$S$26","v":{"$error":"#DIV/0!"}},null,null,{"$f":"D117*$S$27","v":{"$error":"#DIV/0!"}}]
["1.1.2015 to 30.4.2015",null,null,null,null,null,{"$error":"#DIV/0!"},null,null,{"$error":"#DIV/0!"}]
["1.5.2015 to 31.8.2015",null,null,null,null,null,{"$error":"#DIV/0!"},null,null,{"$error":"#DIV/0!"}]
["1.9.2015 to 31.12.2015",null,null,null,null,null,{"$error":"#DIV/0!"},null,null,{"$error":"#DIV/0!"}]
["1.1.2016 to 30.4.2016",null,null,null,null,null,{"$error":"#DIV/0!"},null,null,{"$error":"#DIV/0!"}]
["TOTAL",null,null,{"$f":"SUM(D116:F121)","v":0},null,null,{"$f":"SUM(G116:I121)","v":{"$error":"#DIV/0!"}},null,null,{"$f":"SUM(J116:K121)","v":{"$error":"#DIV/0!"}},null,null,"The total sum of the eligible costs must be equal to the amount of total eligible project costs from the table Sources of financing. "]

{"sheet":"FINANCIAL GAP","index":16,"n_rows":47,"n_cols":17,"rows_kept":47,"cut":false,"hidden":false,"merged":[[44,16,51,22],[4,0,4,6],[4,8,4,13],[42,0,42,3],[42,6,42,10],[43,0,43,3],[43,6,43,10],[41,10,41,11],[44,0,44,3],[44,6,44,10],[45,0,45,3],[45,6,45,10],[46,0,46,3],[46,6,46,10]]}
["FINANCIAL GAP"]
[]
[null,null,null,null,null,null,null,null,null,null,null,null,null,null,7.0000000000000007E-2]
[]
["VALUES AT CONSTANT PRICES (in EUR)",null,null,null,null,null,null,null,"DISCOUNTED VALUES (v EUR)",null,null,null,null,null,7.0000000000000007E-2]
["Year (no.)","Year","Investment costs at constant prices","Operating costs\nstroški","Revenues","Residual Value","Net cash flow",null,"Year (no.)","Year ","Investment costs","Operating costs","Revenues","Residual Value\nvrednosti","Net cash flow"]
[0,"2014",null,null,null,null,{"$f":"-C7-D7+E7+F7","v":0},null,{"$f":"A7","v":0},{"$f":"B7","v":"2014"},{"$f":"C7/POWER(1+$O$3,A7)","v":0},{"$f":"D7/POWER(1+$O$3,A7)","v":0},{"$f":"E7/POWER(1+$O$3,A7)","v":0},{"$f":"F7/POWER(1+$O$3,A7)","v":0},{"$f":"-K7-L7+M7+N7","v":0}]
[1,"2015",null,null,null,null,0,null,{"$f":"A8","v":1},"2015",0,{"$f":"D8/POWER(1+$O$3,A8)","v":0},{"$f":"E8/POWER(1+$O$3,A8)","v":0},{"$f":"F8/POWER(1+$O$3,A8)","v":0},0]
[2,"2016",null,null,null,null,0,null,2,"2016",0,0,0,0,0]
[3,"2017",null,null,null,null,0,null,3,"2017",0,0,0,0,0]
[4,"2018",null,null,null,null,0,null,4,"2018",0,0,0,0,0]
[5,"2019",null,null,null,null,0,null,5,"2019",0,0,0,0,0]
[6,"2020",null,null,null,null,0,null,6,"2020",0,0,0,0,0]
[7,"2021",null,null,null,null,0,null,7,"2021",0,0,0,0,0]
[8,"2022",null,null,null,null,0,null,8,"2022",0,0,0,0,0]
[9,"2023",null,null,null,null,0,null,9,"2023",0,0,0,0,0]
[10,"2024",null,null,null,null,0,null,10,"2024",0,0,0,0,0]
[11,"2025",null,null,null,null,0,null,11,"2025",0,0,0,0,0]
[12,"2026",null,null,null,null,0,null,12,"2026",0,0,0,0,0]
[13,"2027",null,null,null,null,0,null,13,"2027",0,0,0,0,0]
[14,"2028",null,null,null,null,0,null,14,"2028",0,0,0,0,0]
[15,"2029",null,null,null,null,0,null,15,"2029",0,0,0,0,0]
[16,"2030",null,null,null,null,0,null,16,"2030",0,0,0,0,0]
[17,"2031",null,null,null,null,0,null,17,"2031",0,0,0,0,0]
[18,"2032",null,null,null,null,0,null,18,"2032",0,0,0,0,0]
[19,"2033",null,null,null,null,0,null,19,"2033",0,0,0,0,0]
[20,"2034",null,null,null,null,0,null,20,"2034",0,0,0,0,0]
[21,"2035",null,null,null,null,0,null,21,"2035",0,0,0,0,0]
[22,"2036",null,null,null,null,0,null,22,"2036",0,0,0,0,0]
[23,"2037",null,null,null,null,0,null,23,"2037",0,0,0,0,0]
[24,"2038",null,null,null,null,0,null,24,"2038",0,0,0,0,0]
[25,"2039",null,null,null,null,0,null,25,"2039",0,0,0,0,0]
[26,"2040",null,null,null,null,0,null,26,"2040",0,0,0,0,0]
[27,"2041",null,null,null,null,0,null,27,"2041",0,0,0,0,0]
[28,"2042",null,null,null,null,0,null,28,"2042",0,0,0,0,0]
[29,"2043",null,null,null,null,0,null,29,"2043",0,0,0,0,0]
[30,"2044",null,null,null,null,0,null,30,"2044",0,0,0,0,0]
[31,"2045",null,null,null,null,0,null,31,"2045",0,0,0,0,0]
[32,"2046",null,null,null,null,0,null,32,"2046",0,0,0,0,0]
[null,"TOTAL",{"$f":"SUM(C7:C39)","v":0},{"$f":"SUM(D7:D39)","v":0},{"$f":"SUM(E7:E39)","v":0},{"$f":"SUM(F7:F39)","v":0},{"$f":"SUM(G7:G39)","v":0},null,null,"Skupaj",{"$f":"SUM(K7:K39)","v":0},{"$f":"SUM(L7:L39)","v":0},{"$f":"SUM(M7:M39)","v":0},{"$f":"SUM(N7:N39)","v":0},{"$f":"SUM(O7:O39)","v":0}]
[]
[null,null,null,null,null,null,null,null,null,null,"if DNR>0:",null,"if DNR<0:"]
[null,null,null,null,"v EUR",null,"1a) Maximum eligible expenditure (EE=DIC-DNR):",null,null,null,null,{"$f":"ROUND(E46-E47,2)","v":0},{"$f":"E46-E47","v":0}]
["Total investment cost (undiscounted)",null,null,null,{"$f":"C40","v":0},null,"1b) Financing gap (R=EE/DIC):",null,null,null,null,{"$f":"L43/E46","v":{"$error":"#DIV/0!"}},1]
["of which eligible cost (EC)",null,null,null,null,null,"2) Calculation of the Decision amount (DA=EC*R):",null,null,null,null,{"$f":"E45*L44","v":{"$error":"#DIV/0!"}},{"$f":"M44*E45","v":0},null,null,null,"If the applicant is an NGO, enter 90% as the maximum grant, if the applicant is not an NGO, enter 95%. In addition to this calculation, the grant for co-finaning project also depends on the maximum and minimum "]
["Discounted investment cost (DIC)",null,null,null,{"$f":"K40","v":0},null,"3a) Maximum grant (CRpa):"]
["Discounted net revenue (DNR)",null,null,null,{"$f":"M40+N40-L40","v":0},null,"3b) Calculation of the maximum grant amount (DA*Crpa):",null,null,null,null,{"$f":"ROUNDDOWN(L45*L46,2)","v":{"$error":"#DIV/0!"}},{"$f":"M45*M46","v":0}]

{"sheet":"PROJECT ROADMAP","index":17,"n_rows":71,"n_cols":35,"rows_kept":71,"cut":false,"hidden":false,"merged":[[4,1,4,8],[4,9,4,20],[4,21,4,24],[2,0,2,24],[3,1,3,24]]}
["10. PROJECT ROADMAP",null,null,null,null,null,null,null,null,null,null,null,null,null,null,null,null,null,null,null,null,null,null,null,null,null,null,null,null,null,null,"podpodročje","ds v 1","ds v 2","ds v 3"]
[null,null,null,null,null,null,null,null,null,null,null,null,null,null,null,null,null,null,null,null,null,null,null,null,null,null,null,null,null,null,null,{"$f":"'BASIC INFORMATION'!B29","v":3},{"$f":"'WORK PLAN (B1)'!I7 + 4","v":6},{"$f":"'WORK PLAN (B2)'!I7 + 2","v":2},{"$f":"'WORK PLAN (B3)'!I7 + 3","v":6}]
["For each activity define the period, in which it will be implemented.",null,null,null,null,null,null,null,null,null,null,null,null,null,null,null,null,null,null,null,null,null,null,null,null,null,null,null,null,null,"število sklopov",{"$f":"IF($AF$2 = 1,AG2,(IF($AF$2=2,AH2,IF($AF$2=3,AI2))))","v":6}]
[]
["Activity",2014,null,null,null,null,null,null,null,2015,null,null,null,null,null,null,null,null,null,null,null,2016,null,null,null,null,null,null,null,null,"dej v ds 1",{"$f":"IF($AF$2 = 1,AG5,(IF($AF$2=2,AH5,IF($AF$2=3,AI5))))","v":9},{"$f":"'WORK PLAN (B1)'!I9","v":9},{"$f":"'WORK PLAN (B2)'!I9","v":0},{"$f":"'WORK PLAN (B3)'!I9","v":9}]
[null,5,6,7,8,9,10,11,12,1,2,3,4,5,6,7,8,9,10,11,12,1,2,3,4]
["ACT 1.1",null,null,null,null,null,null,null,null,null,null,null,null,null,null,null,null,null,null,null,null,null,null,null,null,null,"Mark with \"x\""]
["ACT 1.2"]
["ACT 1.3"]
["ACT 1.4"]
["ACT 1.5"]
["ACT 1.6"]
["ACT 1.7"]
["ACT 1.8"]
["ACT 1.9"]
["ACT 1.10"]
[null,null,null,null,null,null,null,null,null,null,null,null,null,null,null,null,null,null,null,null,null,null,null,null,null,null,null,null,null,null,"dej v ds 2",{"$f":"IF($AF$2 = 1,AG17,(IF($AF$2=2,AH17,IF($AF$2=3,AI17))))","v":0},{"$f":"'WORK PLAN (B1)'!I25","v":0},{"$f":"'WORK PLAN (B2)'!I25","v":0},{"$f":"'WORK PLAN (B3)'!I25","v":0}]
["ACT 2.1"]
["ACT 2.2"]
["ACT 2.3"]
["ACT 2.4"]
["ACT 2.5"]
["ACT 2.6"]
["ACT 2.7"]
["ACT 2.8"]
["ACT 2.9"]
["ACT 2.10"]
[null,null,null,null,null,null,null,null,null,null,null,null,null,null,null,null,null,null,null,null,null,null,null,null,null,null,null,null,null,null,"dej v ds 3",1,{"$f":"'WORK PLAN (B1)'!I41","v":0},{"$f":"'WORK PLAN (B2)'!I41","v":0},{"$f":"'WORK PLAN (B3)'!I41","v":1}]
["ACT 3.1"]
["ACT 3.2"]
["ACT 3.3"]
["ACT 3.4"]
["ACT 3.5"]
["ACT 3.6"]
["ACT 3.7"]
["ACT 3.8"]
["ACT 3.9"]
["ACT 3.10"]
[null,null,null,null,null,null,null,null,null,null,null,null,null,null,null,null,null,null,null,null,null,null,null,null,null,null,null,null,null,null,null,0,{"$f":"'WORK PLAN (B1)'!I57","v":0},{"$f":"'WORK PLAN (B2)'!I57","v":0},{"$f":"'WORK PLAN (B3)'!I57","v":0}]
["ACT 4.1"]
["ACT 4.2"]
["ACT 4.3"]
["ACT 4.4"]
["ACT 4.5"]
["ACT 4.6"]
["ACT 4.7"]
["ACT 4.8"]
["ACT 4.9"]
["ACT 4.10"]
[null,null,null,null,null,null,null,null,null,null,null,null,null,null,null,null,null,null,null,null,null,null,null,null,null,null,null,null,null,null,null,0,{"$f":"'WORK PLAN (B1)'!I73","v":0},{"$f":"'WORK PLAN (B2)'!I73","v":0},{"$f":"'WORK PLAN (B3)'!I73","v":0}]
["ACT 5.1"]
["ACT 5.2"]
["ACT 5.3"]
["ACT 5.4"]
["ACT 5.5"]
["ACT 5.6"]
["ACT 5.7"]
["ACT 5.8"]
["ACT 5.9"]
["ACT 5.10"]
[null,null,null,null,null,null,null,null,null,null,null,null,null,null,null,null,null,null,null,null,null,null,null,null,null,null,null,null,null,null,null,0,{"$f":"'WORK PLAN (B1)'!I89","v":0},{"$f":"'WORK PLAN (B2)'!I89","v":0},{"$f":"'WORK PLAN (B3)'!I89","v":0}]
["ACT 6.1"]
["ACT 6.2"]
["ACT 6.3"]
["ACT 6.4"]
["ACT 6.5"]
["ACT 6.6"]
["ACT 6.7"]
["ACT 6.8"]
["ACT 6.9"]
["ACT 6.10"]

{"sheet":"RISKS","index":18,"n_rows":31,"n_cols":11,"rows_kept":31,"cut":false,"hidden":false,"merged":[[19,1,19,2],[13,3,13,4],[19,3,19,4],[6,1,6,4],[7,1,7,4],[8,1,8,4],[15,1,15,2],[15,3,15,4],[2,0,2,4],[10,0,10,4],[18,1,18,2],[18,3,18,4],[16,1,16,2],[16,3,16,4],[17,1,17,2],[17,3,17,4],[14,1,14,2],[14,3,14,4],[13,1,13,2],[20,1,20,2],[20,3,20,4],[21,1,21,2],[21,3,21,4],[22,1,22,2],[22,3,22,4],[23,1,23,2],[23,3,23,4],[24,1,24,2],[24,3,24,4],[25,1,25,2],[25,3,25,4],[29,1,29,2],[29,3,29,4],[30,1,30,2],[30,3,30,4],[26,1,26,2],[26,3,26,4],[27,1,27,2],[27,3,27,4],[28,1,28,2],[28,3,28,4]]}
["11. PROJECT IMPLEMENTATION RISKS",null,null,null,null,null,null,null,null,null,0]
[null,null,null,null,null,null,null,null,null,null,1]
["Describe the risks which can impact the implementation of the project and your actions to avoid or reduce such risks. It is mandatory to specify the actions to reduce the risk for the general risk. If specific risks also exist, identify them for each individual activity and specify the actions to reduce such risks. ",null,null,null,null,null,null,null,null,null,2]
[null,null,null,null,null,null,null,null,null,null,3]
["General risks",null,null,null,null,null,null,null,null,null,4]
[null,null,null,null,null,null,null,null,null,null,5]
["RISK","Action to reduce the risk",null,null,null,null,null,null,null,null,6]
["The lack of liquidity of assets for the smooth implementation of the project throughout the entire period",null,null,null,null,null,"Max 500 characters.",null,null,null,7]
["Lack of adequate human resources within the organisation of the applicant and partners",null,null,null,null,null,"Max 500 characters.",null,null,null,8]
[null,null,null,null,null,null,null,null,null,null,9]
["Specific risks for the main activities",null,null,null,null,null,null,null,null,null,10]
[null,null,null,null,null,null,null,null,null,null,11]
[null,null,null,"Number of fields",9,null,"Select from list",null,null,null,12]
["Activity","Risk",null,"Action to reduce the risk",null,null,null,null,null,null,13]
[null,null,null,null,null,null,"Max 500 characters.",null,null,null,14]
[null,null,null,null,null,null,"Max 500 characters.",null,null,null,15]
[null,null,null,null,null,null,"Max 500 characters."]
[null,null,null,null,null,null,"Max 500 characters."]
[null,null,null,null,null,null,"Max 500 characters."]
[null,null,null,null,null,null,"Max 500 characters."]
[null,null,null,null,null,null,"Max 500 characters.",null,null,null,14]
[null,null,null,null,null,null,"Max 500 characters.",null,null,null,15]
[null,null,null,null,null,null,"Max 500 characters."]
[null,null,null,null,null,null,"Max 500 characters."]
[null,null,null,null,null,null,"Max 500 characters."]
[null,null,null,null,null,null,"Max 500 characters."]
[null,null,null,null,null,null,"Max 500 characters.",null,null,null,15]
[null,null,null,null,null,null,"Max 500 characters."]
[null,null,null,null,null,null,"Max 500 characters."]
[null,null,null,null,null,null,"Max 500 characters."]
[null,null,null,null,null,null,"Max 500 characters."]

{"sheet":"IMPACT","index":19,"n_rows":9,"n_cols":7,"rows_kept":9,"cut":false,"hidden":false,"merged":[[3,0,3,4]]}
["12. PROJECT IMPACT ON HORIZONTAL PROGRAMME POLICIES"]
[]
[]
["Define the extent of the project impact on the individual horizontal programme policies. Describe how the project impacts the horizontal programme policies and define the possible specific models, structures or mechanisms with which it contributes to the realisation of horizontal policies."]
[]
["Horizontal policies","No impact","Medium impact","Big impact","Project impact on horizontal policies"]
["Sustainable development",null,null,null,null,null,"Max 1000 characters."]
["Good governance",null,null,null,null,null,"Max 1000 characters."]
["Gender equality",null,null,null,null,null,"Max 1000 characters."]

{"sheet":"INFORMATION AND PUBLICITY PLAN","index":20,"n_rows":5,"n_cols":9,"rows_kept":5,"cut":false,"hidden":false,"merged":[[2,0,2,6],[4,0,12,6]]}
["13. INFORMATION AND PUBLICITY PLAN"]
[]
["Present the information and publicity plan. "]
[]
[null,null,null,null,null,null,null,null,"Max 5000 characters."]

{"sheet":"CHECKLIST","index":21,"n_rows":32,"n_cols":7,"rows_kept":32,"cut":false,"hidden":false,"merged":[[14,0,14,1],[26,0,26,1],[2,0,2,1]]}
["14. CHECKLIST"]
[]
["The checklist serves only as an aid in drafting the application."]
[null,null,null,null,null,"Izbrano področje",{"$f":"'BASIC INFORMATION'!B29","v":3}]
["Each application should include at least the following:"]
[]
[null,"The application form in the English and the Slovenian language has been filled in completely and the hard copy has been signed and stamped."]
[null,"A statement of the applicant has been filled in, signed and stamped."]
[null,"Partnership statement has been filled in, signed, stamped and enclosed for each partner."]
[null,"A copy of the founding document of the applicant and each partner is enclosed."]
[null,"The balance sheet of the applicant and partners for 2012 is enclosed."]
[null,"The application is drawn up in a single original in hard copy."]
[null,"The application is enclosed in electronic form on CD, DVD or USB flash drive."]
[null,"The envelope is marked accordingly, including an indication of the areas of the call."]
["When certain conditions are met, the application must also include the following documents"]
[null,"The original authorisation, given by the responsible person of the institution if the signer is not the responsible person."]
[null,"A copy of the investment documentation is enclosed (if project generates revenues include as well the cost-benefit analysis or the calculation of the financing gap )"]
[null,"A copy of a valid building permit is enclosed."]
[null,"A copy of the authorization to carry out work on a particular real estate is enclosed."]
[null,"A copy of preliminary contract of sale which shows that the real estate/property is free of any restrictions, and a copy of the certificate of and independent qualified valuer or an authorized body, from which it is evident that the purchase price does not exceed the market price is enclosed."]
[null,"The statement of ownership of a cultural monument is enclosed."]
[null,"A copy of the agreement or decision on the management of a cultural monument is enclosed."]
[null,"The statement on threatened cultural monument is enclosed."]
[null,"A copy of a management plan or programme of a cultural monument is enclosed."]
[null,"The photographic documentation is enclosed."]
[]
["Pay attention to the following restrictions:"]
[" ","Project duration is longer than 12 months and shall end no later than 30 April 2016."]
[null,"The requested amount of the grant for projects in the field of Biodiversity and ecosystem services is above 500.000 euros and no exceeding 700.000 euros and at the same time not exceeding 95.00% of the project eligible costs, or 90.00% where the applicant is a non-governmental organization."]
[null,"The requested amount of the grant for projects in the field of Natural heritage is above 250.000 euros and not exceeding 1.000.000 euros and at the same time not exceeding 95.00% of the project eligible costs, or 90.00% where the applicant is a non-governmental organization."]
[null,"The requested amount of the grant for projects in the field of Cultural heritage is above 1.000.000 euros and not exceeding 2.000.000 euros and at the same time not exceeding 95.00% of the project eligible costs, or 90.00% where the applicant is a non-governmental organization."]
[null,"Own co-financing is provided in the amount of at least 5.00% of the total project eligible costs or 10.00% if the applicant is a non-governmental organization."]

{"sheet":"STATEMENT","index":22,"n_rows":17,"n_cols":8,"rows_kept":17,"cut":false,"hidden":false,"merged":[[9,7,9,12],[0,0,3,5],[7,2,8,5],[14,2,14,5],[15,2,15,5],[5,0,5,5],[9,2,9,5],[10,2,10,5],[11,2,11,5],[12,2,12,5],[13,2,13,5]]}
["15. A STATEMENT OF THE APPLICANT ON THE DIGITISATION OF DATA"]
[]
[]
[]
[]
["On behalf of the applicant, I, the undersigned, declare that the data on the status of species and/or habitat types, gathered within the projects, will be digitised. "]
[]
["Place and date ",null,"Signature of the responsible person or authorised person"]
[]
[null,null,null,null,null,null,null,"Sign and stamp only the hard copy of the application."]
[null,null,"signature"]
[null,"STAMP"]
[]
[null,null,"Name and surname"]
[]
[]
[null,null,"Title"]

{"sheet":"SIGNATURE","index":23,"n_rows":18,"n_cols":12,"rows_kept":18,"cut":false,"hidden":false,"merged":[[3,1,3,4],[4,1,4,4],[5,1,5,4],[9,6,9,8]]}
["16. APPLICANT SIGNATURE  ",null,null,null,null,null,null,null,null,null,null,{"$f":"'BASIC INFORMATION'!B29","v":3}]
["15. APPLICANT SIGNATURE  "]
[]
[null,"I confirm that I have full powers of the institutions of the applicant to sign this application, that I thoroughly checked all statements and information given in this application and that they are correct and accurate."]
[]
[null,"I agree that MEDT can publish parts of this application."]
[]
[null,"Place and date",null,null,"Signature of the responsible person or authorised person."]
[]
[null,null,null,null,null,null,"Sign and stamp only the hard copy of the application."]
[null,null,null,null,"Signature"]
[]
[]
[]
[null,null,null,null,"Name and surname "]
[]
[]
[null,null,null,null,"Title"]